Workbook

Sheet Ž
A1: Průběžné pořadí ČP mládeže a žen 2019
A3: ŽENY
B4: 2019-09-09 | C4: 17:57:24 | D4: Last RECALCULATION
A6: Pořadí | B6: UCI ID | C6: Jméno a příjmení | D6: Oddíl | E6: Body CLK | F6: Body TOP | G6: Soběslav krit | H6: Kyjov Krit. | I6: Olomouc | J6: Plzeň krit. | K6: Ostrava krit | L6: Jablonec n. N. | M6: Terezín | N6: Zbraslav Sil. | O6: Kyjov Sil. | P6: Olomouc | Q6: Kroměžíž | R6: Plzeň | S6: Bílovec | T6: Nový Jičín | U6: Ostrava | V6: Jablonec n. N. | W6: Židovice | X6: MČR ČJ | Y6: MČR ČD | Z6: MČR
A7: 1 | B7: 10004738937 | C7: MACHAČOVÁ, Jarmila | D7: TEAM DUKLA PRAHA | E7: =SUM(G7:AK7) -> 704 | F7: 704 | G7: 30 | H7: 50 | K7: 50 | L7: 0 | N7: 60 | O7: 100 | Q7: 100 | U7: 100 | V7: 0 | X7: 84 | Y7: 40 | Z7: 90
A8: 2 | B8: 10009748278 | C8: BAJGEROVÁ, Nikola | D8: TEAM DUKLA PRAHA | E8: 554 | F8: 554 | G8: 50 | H8: 27 | I8: 50 | K8: 18 | L8: 0 | O8: 55 | P8: 100 | U8: 36 | V8: 0 | X8: 68 | Y8: 40 | Z8: 110
A9: 3 | B9: 10023478327 | C9: JANŮ, Kamila | D9: ČEZ Cyklo Team Tábor | E9: 466 | F9: 466 | G9: 18 | H9: 30 | I9: 27 | L9: 30 | N9: 51 | O9: 51 | P9: 55 | Q9: 51 | V9: 55 | Y9: 28 | Z9: 70
A10: 4 | B10: 10015335377 | C10: HÁJKOVÁ, Markéta | D10: Servetto Piumate Beltrami TSA | E10: 453 | F10: 453 | G10: 24 | H10: 24 | K10: 27 | L10: 0 | N10: 55 | O10: 48 | P10: 60 | Q10: 55 | T10: 100 | U10: 60 | V10: 0
A11: 5 | B11: 10064869035 | C11: DÝROVÁ MACHÁČKOVÁ, Šárka | D11: SportRaces Isaac Team | E11: 487 | F11: 450 | I11: 18 | J11: 30 | K11: 22 | L11: 0 | N11: 40 | O11: 37 | P11: 40 | Q11: 40 | R11: 55 | T11: 60 | U11: 51 | V11: 51 | Z11: 43
A12: 6 | B12: 1000181849 | C12: NEUMANOVÁ, Tereza | D12: TEAM DUKLA PRAHA | E12: 447 | F12: 447 | H12: 37 | L12: 0 | O12: 60 | Q12: 75 | U12: 75 | V12: 0 | Y12: 50 | Z12: 150
A13: 7 | B13: 10002516627 | C13: HAVLÍKOVÁ, Pavla | D13: KC KOOPERATIVA Jablonec nad Nisou, z.s. | E13: 427 | F13: 427 | I13: 37 | L13: 0 | N13: 75 | P13: 75 | Q13: 60 | R13: 100 | V13: 0 | Z13: 80
A14: 8 | B14: 10016041962 | C14: ČUNDERLOVÁ, Daniela | D14: MAPEI MERIDA KAŇKOVSKÝ | E14: 418 | F14: 418 | I14: 50 | J14: 27 | K14: 20 | L14: 0 | P14: 38 | Q14: 33 | R14: 48 | S14: 55 | T14: 45 | U14: 38 | V14: 0 | X14: 23 | Z14: 41
A15: 9 | B15: 10023478226 | C15: VANÍČKOVÁ, Tereza | D15: IVAR CS - AUTHOR TEAM | E15: 413 | F15: 413 | G15: 22 | I15: 30 | J15: 50 | L15: 24 | P15: 51 | R15: 75 | V15: 60 | X15: 26 | Z15: 75
A16: 10 | B16: 10009122933 | C16: MUDŘÍKOVÁ, Kateřina | D16: ACK Stará Ves nad Ondřejnicí | E16: 412 | F16: 412 | H16: 20 | K16: 24 | L16: 0 | O16: 36 | S16: 100 | T16: 75 | U16: 42 | V16: 0 | X16: 60 | Z16: 55
A17: 11 | B17: 10014825018 | C17: VORÁČOVÁ, Naďa | D17: TUFO PARDUS Prostějov z.s. | E17: 402 | F17: 402 | G17: 16 | H17: 17 | I17: 21 | K17: 21 | L17: 27 | O17: 40 | P17: 45 | Q17: 42 | S17: 51 | T17: 40 | U17: 37 | V17: 45
A18: 12 | B18: 10013443069 | C18: VAN NECK, Melissa | D18: BEPINK | E18: 374 | F18: 374 | G18: 27 | H18: 22 | L18: 0 | N18: 100 | O18: 75 | Q18: 48 | V18: 0 | X18: 47 | Z18: 55
A19: 13 | B19: 10015208267 | C19: KORVASOVÁ, Tereza | D19: TEAM DUKLA PRAHA | E19: 373 | F19: 373 | G19: 17 | I19: 19 | L19: 0 | P19: 42 | Q19: 38 | U19: 55 | V19: 0 | X19: 110 | Y19: 50 | Z19: 42
A20: 14 | B20: 10060809179 | C20: ZADÁKOVÁ, Klára | D20: SportRaces Isaac Team | E20: 363 | F20: 363 | L20: 0 | N20: 48 | O20: 34 | Q20: 35 | R20: 60 | S20: 48 | T20: 42 | V20: 42 | X20: 54
A21: 15 | B21: 10010944008 | C21: UNGERMANOVÁ, Elizabeth | D21: TJ AŠ Ml. Boleslav | E21: 319 | F21: 319 | H21: 16 | I21: 24 | L21: 22 | P21: 48 | Q21: 45 | V21: 75 | X21: 44 | Z21: 45
A22: 16 | B22: 10006602246 | C22: HOCHMANN, Lucie | D22: TEAM DUKLA PRAHA | E22: 295 | F22: 295 | G22: 37 | K22: 37 | L22: 0 | N22: 38 | U22: 35 | V22: 0 | X22: 50 | Y22: 33 | Z22: 65
A23: 17 | B23: 10015426519 | C23: ŠVILHÁKOVÁ, Tereza | D23: KC KOOPERATIVA Jablonec nad Nisou, z.s. | E23: 234 | F23: 234 | G23: 19 | I23: 22 | L23: 37 | O23: 45 | P23: 35 | V23: 48 | Y23: 28
A24: 18 | B24: 10047762174 | C24: HEŘMANOVSKÁ, Hana | D24: SaF Zéisseng / ASC - Immo Losch | E24: 218 | F24: 218 | G24: 20 | H24: 21 | L24: 0 | N24: 42 | Q24: 37 | V24: 0 | X24: 38 | Z24: 60
A25: 19 | B25: 10010776680 | C25: ŠVRČKOVÁ, Barbora | D25: BRS Technology KAKTUS BIKE RT | E25: 218 | F25: 218 | L25: 0 | N25: 37 | P25: 37 | Q25: 36 | S25: 60 | T25: 48 | V25: 0
A26: 20 | B26: 10079890291 | C26: KRUTÍLKOVÁ, Petra | D26: TEAM FORMAN CINELLI | E26: 190 | F26: 190 | I26: 16 | L26: 0 | O26: 28 | P26: 34 | Q26: 31 | S26: 45 | T26: 36 | V26: 0
A27: 21 | B27: 10093071985 | C27: RINAGLOVÁ, Anna | D27: SportRaces Isaac Team | E27: 172 | F27: 172 | L27: 0 | O27: 27 | P27: 33 | T27: 38 | U27: 34 | V27: 0 | Z27: 40
A28: 22 | B28: 10010777791 | C28: KOHOUTKOVÁ, Kateřina | D28: TEAM DUKLA PRAHA | E28: 167 | F28: 167 | K28: 19 | L28: 0 | Q28: 34 | U28: 40 | V28: 0 | X28: 41 | Y28: 33
A29: 23 | B29: 10009335121 | C29: NOSKOVÁ, Nikola | D29: Český Národní Team | E29: 150 | F29: 150 | L29: 50 | V29: 100
A30: 24 | B30: 10015286271 | C30: CETKOVSKÁ, Ema | D30: TEAM DUKLA PRAHA | E30: 126 | F30: 126 | G30: 21 | H30: 18 | L30: 0 | N30: 45 | O30: 42 | V30: 0
A31: 25 | B31: 10058797340 | C31: PAVELKOVÁ, Klára | D31: SUPERIOR RIDERS | E31: 94 | F31: 94 | L31: 0 | U31: 48 | V31: 0 | Z31: 46
A32: 26 | B32: 10009490725 | C32: KUČEROVÁ, Božena | D32: kola-bbm.cz | E32: 88 | F32: 88 | J32: 37 | L32: 0 | R32: 51 | V32: 0
A33: 27 | C33: ŠEVČÍKOVÁ Petra | D33: TEAM DUKLA PRAHA | E33: 75 | F33: 75 | K33: 30 | L33: 0 | U33: 45 | V33: 0
A34: 28 | B34: 10093195863 | C34: VACKOVÁ, Lenka | D34: TJ Favorit Brno | E34: 71 | F34: 71 | L34: 0 | N34: 36 | V34: 0 | X34: 35
A35: 29 | C35: SCHÄFEROVÁ, Pavlína | D35: SK FAVORIT Bílina z.s. | E35: 45 | F35: 45 | L35: 0 | R35: 45 | V35: 0
A36: 30 | B36: 10009338151 | C36: CZECZINKAROVÁ, Jana | D36: MITAS MERCEDES - BENZ PRAHA TREK | E36: 44 | F36: 44 | L36: 0 | V36: 0 | Z36: 44
A37: 31 | B37: 10091516349 | C37: VÁCHOVÁ, Petra | D37: Here to Win team | E37: 33 | F37: 33 | L37: 0 | O37: 33 | V37: 0
A38: 32 | B38: 10093914370 | C38: MARSCHNEROVÁ Adriana | D38: TEAM CYKLOTRENER VARNSDORF | E38: 32 | F38: 32 | L38: 0 | Q38: 32 | V38: 0
A39: 33 | B39: 10014533513 | C39: ROTTEROVÁ, Aneta | D39: SKP DUHA LANŠKROUN | E39: 32 | F39: 32 | L39: 0 | V39: 0 | X39: 32
A40: 34 | B40: 10047445411 | C40: GIERGELOVÁ, Markéta | D40: SKIBIKECENTRUM.CZ Team | E40: 32 | F40: 32 | L40: 0 | O40: 32 | V40: 0
A41: 35 | B41: 10010778195 | C41: TRČKOVÁ, Daniela | D41: Restovecycling | E41: 29 | F41: 29 | L41: 0 | V41: 0 | X41: 29
A42: 36 | B42: 10010167503 | C42: KAŇKOVSKÁ, Ema | D42: ASO DUKLA BRNO | E42: 19 | F42: 19 | H42: 19 | L42: 0 | V42: 0
A43: 37 | B43: 10010585815 | C43: DRAHOTOVÁ, Anežka | D43: MAPEI MERIDA KAŇKOVSKÝ | E43: 0 | F43: 0 | L43: 0 | V43: 0
A44: 38 | B44: 10013060830 | C44: BARTOŠOVÁ, Denisa | D44: CYKLO TÝM HORNÍ BLUDOVICE | E44: 0 | F44: 0 | L44: 0 | V44: 0

Sheet J
A1: Průběžné pořadí ČP mládeže a žen 2019
A3: JUNIOŘI
A4: Datum 28. 5. 2019 | B4: 2019-09-09 | C4: 17:29:51 | D4: Last RECALCULATION
A6: Pořadí | B6: UCI ID | C6: Jméno a příjmení | D6: Oddíl | E6: Body CLK | F6: Body TOP | G6: Soběslav krit | H6: Kyjov Krit. | I6: Olomouc | J6: Plzeň krit. | K6: Ostrava krit. | L6: Jablonec n. N. | M6: Terezín | N6: Olomouc | O6: Kyjov Sil. | P6: Kroměříž | Q6: Zbraslav Sil. | R6: Plzeň | S6: Bílovec | T6: Nový Jičín | U6: Ostrava | V6: Jablonec n. N. | W6: Židovice | X6: MČR ČJ | Y6: MČR ČD | Z6: MČR | AA6: Reg. Orlicka
A7: 1 | B7: 10046718517 | C7: BITTNER, Pavel | D7: MAPEI MERIDA KAŇKOVSKÝ | E7: =SUM(G7:AD7) -> 1331 | F7: 1331 | G7: 50 | H7: 50 | I7: 50 | K7: 30 | L7: 50 | N7: 75 | O7: 75 | P7: 33 | Q7: 48 | T7: 60 | U7: 75 | V7: 100 | X7: 84 | Y7: 50 | Z7: 150 | AA7: 351
A8: 2 | B8: 10047277073 | C8: ŤOUPALÍK, Jakub | D8: CYCLING ACADEMY TÁBOR | E8: 1103 | F8: 1103 | G8: 37 | H8: 37 | I8: 37 | K8: 27 | L8: 24 | N8: 48 | O8: 100 | P8: 100 | Q8: 37 | U8: 55 | V8: 60 | X8: 110 | Y8: 50 | Z8: 110 | AA8: 271
A9: 3 | B9: 10047374275 | C9: RUNT, Lukáš | D9: SportRaces Isaac Team | E9: 732 | F9: 695 | G9: 24 | I9: 21 | J9: 37 | K9: 21 | L9: 19 | N9: 45 | P9: 60 | Q9: 75 | R9: 75 | S9: 55 | T9: 37 | U9: 48 | V9: 75 | X9: 47 | Y9: 28 | Z9: 65
A10: 4 | B10: 10048200189 | C10: BOUČEK, Jakub | D10: RBB INVEST FORCE CYCLING TEAM | E10: 635 | F10: 635 | H10: 18 | I10: 10 | K10: 37 | L10: 37 | N10: 36 | O10: 60 | U10: 60 | V10: 51 | X10: 60 | Y10: 40 | Z10: 45 | AA10: 181
A11: 5 | B11: 10048201203 | C11: STOČEK, Bruno | D11: IVAR CS - AUTHOR TEAM | E11: 585 | F11: 585 | H11: 24 | I11: 19 | K11: 11 | L11: 27 | N11: 51 | O11: 55 | P11: 31 | T11: 100 | U11: 51 | V11: 55 | X11: 68 | Y11: 33 | Z11: 60
A12: 6 | B12: 10047786628 | C12: HNÍK, Jakub | D12: TUFO PARDUS Prostějov z.s. | E12: 563 | F12: 563 | G12: 27 | H12: 12 | I12: 11 | L12: 21 | N12: 55 | O12: 48 | P12: 40 | Q12: 42 | S12: 100 | T12: 75 | U12: 100 | V12: 0 | X12: 9 | Z12: 23
A13: 7 | B13: 10047304456 | C13: ČEKAL, Josef | D13: RBB INVEST FORCE CYCLING TEAM | E13: 603 | F13: 556 | G13: 11 | H13: 16 | I13: 17 | J13: 17 | K13: 22 | L13: 19 | N13: 42 | O13: 51 | Q13: 38 | R13: 55 | S13: 40 | T13: 36 | U13: 45 | V13: 36 | X13: 38 | Y13: 40 | Z13: 80
A14: 8 | B14: 10047236758 | C14: HETFLEIŠ, Petr | D14: MAPEI MERIDA KAŇKOVSKÝ | E14: 519 | F14: 481 | G14: 17 | H14: 9 | I14: 22 | J14: 20 | K14: 16 | L14: 20 | N14: 34 | P14: 29 | Q14: 51 | R14: 40 | S14: 38 | T14: 48 | U14: 40 | V14: 48 | Y14: 50 | Z14: 37
A15: 9 | B15: 10047256461 | C15: BREDLER, Matyáš Jiří | D15: TJ AŠ ML.BOLESLAV | E15: 473 | F15: 473 | G15: 22 | H15: 17 | I15: 20 | J15: 24 | L15: 27 | N15: 60 | O15: 27 | P15: 25 | Q15: 36 | R15: 100 | V15: 35 | X15: 11 | Y15: 40 | Z15: 29
A16: 10 | B16: 10082074714 | C16: MIKLOVIČ, Jakub | D16: SportRaces Isaac Team | E16: 471 | F16: 448 | I16: 1 | J16: 21 | K16: 13 | L16: 0 | N16: 32 | O16: 23 | P16: 34 | R16: 42 | S16: 75 | T16: 55 | U16: 37 | V16: 40 | X16: 29 | Y16: 28 | Z16: 41
A17: 11 | B17: 10065321602 | C17: KOPELENT, David | D17: RBB INVEST FORCE CYCLING TEAM | E17: 486 | F17: 446 | G17: 12 | H17: 14 | I17: 12 | J17: 30 | K17: 15 | L17: 16 | N17: 29 | O17: 35 | Q17: 28 | R17: 37 | S17: 35 | T17: 40 | U17: 32 | V17: 45 | X17: 26 | Y17: 40 | Z17: 40
A18: 12 | B18: 10059238890 | C18: ŘEHA, Filip | D18: FORCE TEAM JESENÍK | E18: 429 | F18: 429 | I18: 27 | K18: 8 | L18: 0 | N18: 100 | P18: 37 | Q18: 45 | T18: 42 | V18: 0 | X18: 50 | Y18: 50 | Z18: 70
A19: 13 | B19: 10047309409 | C19: KŘENEK, Adam | D19: TJ FAVORIT BRNO | E19: 402 | F19: 402 | G19: 9 | J19: 19 | K19: 12 | L19: 15 | P19: 42 | Q19: 55 | R19: 60 | S19: 51 | T19: 30 | U19: 29 | V19: 31 | X19: 23 | Z19: 26
A20: 14 | B20: 10047373366 | C20: VOLTR, Martin | D20: TEAM DUKLA PRAHA | E20: 399 | F20: 399 | J20: 13 | K20: 7 | L20: 0 | P20: 51 | Q20: 100 | S20: 42 | T20: 21 | U20: 33 | V20: 32 | X20: 41 | Y20: 28 | Z20: 31
A21: 15 | B21: 10000832665 | C21: CAMRDA, Karel | D21: ČEZ Cyklo Team Tábor | E21: 323 | F21: 323 | G21: 14 | H21: 21 | I21: 18 | L21: 22 | N21: 35 | O21: 45 | P21: 48 | Q21: 32 | V21: 42 | Z21: 46
A22: 16 | B22: 10081180593 | C22: FIGALLA, Michal | D22: CYKLO TÝM HORNÍ BLUDOVICE | E22: 314 | F22: 314 | G22: 6 | H22: 10 | I22: 13 | K22: 1 | L22: 0 | O22: 28 | P22: 75 | Q22: 35 | T22: 28 | U22: 31 | V22: 0 | X22: 20 | Y22: 28 | Z22: 39
A23: 17 | B23: 10047358313 | C23: REH, Antonín | D23: KOVO PRAHA | E23: 301 | F23: 301 | G23: 30 | H23: 5 | I23: 14 | J23: 50 | L23: 0 | N23: 28 | O23: 32 | P23: 27 | Q23: 30 | R23: 48 | V23: 0 | X23: 12 | Z23: 25
A24: 18 | B24: 10047299103 | C24: KOLAŘÍK, Lukáš | D24: TUFO PARDUS Prostějov z.s. | E24: 269 | F24: 269 | G24: 15 | H24: 30 | L24: 14 | N24: 31 | O24: 30 | P24: 36 | Q24: 29 | T24: 25 | U24: 23 | V24: 0 | X24: 8 | Z24: 28
A25: 19 | B25: 10047288288 | C25: KUČERA Jakub | D25: EXPRES CZ - TUFO TEAM KOLÍN | E25: 268 | F25: 268 | L25: 13 | N25: 40 | P25: 45 | U25: 35 | V25: 37 | Z25: 43 | AA25: 55
A26: 20 | B26: 10047225240 | C26: DANĚK, Jakub | D26: IVAR CS - AUTHOR TEAM | E26: 261 | F26: 261 | G26: 21 | L26: 0 | N26: 38 | O26: 36 | P26: 28 | Q26: 31 | V26: 0 | X26: 44 | Y26: 33 | Z26: 30
A27: 21 | B27: 10047330627 | C27: SMÉKAL, René | D27: TUFO PARDUS Prostějov z.s. | E27: 245 | F27: 245 | H27: 27 | I27: 30 | K27: 24 | L27: 0 | N27: 20 | V27: 0 | X27: 54 | Z27: 90
A28: 22 | B28: 10047252118 | C28: PÁV, Tadeáš | D28: KOVO PRAHA | E28: 224 | F28: 224 | G28: 16 | I28: 6 | J28: 14 | L28: 0 | N28: 30 | O28: 42 | P28: 23 | Q28: 20 | R28: 38 | V28: 0 | Z28: 35
A29: 23 | B29: 10047307991 | C29: KOMÍNEK, Luboš | D29: TEAM DUKLA PRAHA | E29: 220 | F29: 220 | G29: 19 | H29: 13 | L29: 0 | O29: 40 | P29: 26 | Q29: 40 | V29: 0 | X29: 32 | Z29: 50
A30: 24 | B30: 10047449855 | C30: HORULKO, Vladyslav | D30: TJ AŠ ML.BOLESLAV | E30: 214 | F30: 214 | G30: 7 | H30: 6 | I30: 7 | J30: 16 | L30: 10 | N30: 37 | O30: 29 | P30: 38 | Q30: 26 | V30: 38
A31: 25 | B31: 10048203930 | C31: MÜLLER, Maxim | D31: TUFO PARDUS Prostějov z.s. | E31: 207 | F31: 207 | G31: 8 | I31: 4 | K31: 4 | L31: 12 | N31: 33 | P31: 32 | Q31: 60 | T31: 22 | V31: 0 | X31: 10 | Z31: 22
A32: 26 | B32: 10047272023 | C32: SWACZYNA, Tomáš | D32: CK FESO PETŘVALD | E32: 204 | F32: 204 | H32: 11 | I32: 8 | K32: 18 | L32: 0 | N32: 24 | P32: 22 | Q32: 21 | S32: 37 | U32: 25 | V32: 0 | Z32: 38
A33: 27 | B33: 10047309510 | C33: KADLEC, Vojtěch | D33: TJ FAVORIT BRNO | E33: 186 | F33: 186 | G33: 18 | L33: 0 | O33: 26 | P33: 30 | Q33: 33 | S33: 48 | T33: 31 | V33: 0
A34: 28 | B34: 10047218873 | C34: LIŠKA, Marek | D34: Roman Kreuziger Cycling Academy | E34: 183 | F34: 183 | I34: 24 | K34: 6 | L34: 9 | N34: 19 | O34: 33 | V34: 0 | X34: 17 | Z34: 75
A35: 29 | B35: 10046331224 | C35: JANOŠ, Matyáš | D35: TEAM DUKLA PRAHA | E35: 172 | F35: 172 | L35: 0 | P35: 55 | Q35: 27 | V35: 0 | X35: 35 | Z35: 55
A36: 30 | B36: 10047448744 | C36: ČÍŽEK, Vojtěch | D36: TJ STADION LOUNY | E36: 172 | F36: 172 | I36: 9 | J36: 12 | L36: 8 | N36: 25 | P36: 24 | Q36: 24 | V36: 33 | X36: 4 | Z36: 33
A37: 31 | B37: 10092343879 | C37: KUČERA, Vojtěch | D37: CK FESO PETŘVALD | E37: 159 | F37: 159 | K37: 1 | L37: 0 | N37: 26 | S37: 45 | T37: 19 | U37: 34 | V37: 0 | Z37: 34
A38: 32 | B38: 10047398123 | C38: VOLF, Martin | D38: Roman Kreuziger Cycling Academy | E38: 158 | F38: 158 | I38: 2 | K38: 10 | L38: 0 | N38: 27 | O38: 31 | Q38: 23 | T38: 26 | V38: 0 | X38: 7 | Z38: 32
A39: 33 | B39: 10046341530 | C39: MACÁN, Karel | D39: Roman Kreuziger Cycling Academy | E39: =SUM(G39:AD39) -> 145 | F39: 145 | G39: 20 | H39: 20 | K39: 9 | L39: 0 | N39: 18 | Q39: 34 | V39: 0 | Z39: 44
A40: 34 | B40: 10047227462 | C40: ŽVAK, Daniel | D40: EXPRES CZ - TUFO TEAM KOLÍN | E40: 132 | F40: 132 | K40: 20 | L40: 30 | T40: 23 | U40: 38 | V40: 0 | Z40: 21
A41: 35 | B41: 10047319614 | C41: HALBICH, Tomáš | D41: PROFI SPORT CHEB | E41: 125 | F41: 125 | K41: 17 | L41: 0 | T41: 20 | U41: 36 | V41: 34 | Z41: 18
A42: 36 | B42: 10046635964 | C42: HURÁČ, Vojtěch | D42: CK FESO PETŘVALD | E42: 119 | F42: 119 | I42: 3 | K42: 19 | L42: 0 | N42: 17 | P42: 21 | T42: 29 | U42: 30 | V42: 0
A43: 37 | B43: 10047315166 | C43: ZÁTOPEK, Jan | D43: TJ SGMA HRANICE, z.s. | E43: 104 | F43: 104 | K43: 14 | L43: 0 | N43: 21 | U43: 28 | V43: 0 | X43: 5 | Z43: 36
A44: 38 | B44: 10047403173 | C44: HORÁK, Dominik | D44: Jaroslav Kulhavý Cycling Team | E44: 100 | F44: 100 | H44: 22 | L44: 0 | R44: 51 | V44: 0 | Z44: 27
A45: 39 | B45: 10047914950 | C45: JEŽEK, Tomáš | D45: IVAR CS - AUTHOR TEAM | E45: 96 | F45: 96 | G45: 13 | K45: 5 | L45: 0 | Q45: 25 | T45: 27 | U45: 26 | V45: 0
A46: 40 | B46: 10047209476 | C46: VITNER, David | D46: Roman Kreuziger Cycling Academy | E46: 91 | F46: 91 | G46: 10 | I46: 16 | J46: 15 | L46: 0 | N46: 13 | V46: 0 | X46: 13 | Z46: 24
A47: 41 | B47: 10047371245 | C47: HRDLIČKA, Aleš | D47: MAPEI MERIDA KAŇKOVSKÝ | E47: 80 | F47: 80 | L47: 0 | N47: 11 | O47: 37 | T47: 32 | V47: 0
A48: 42 | C48: RADEK, Patrik | D48: ON - OFF TEAM | E48: 77 | F48: 77 | L48: 0 | T48: 35 | U48: 42 | V48: 0
A49: 43 | B49: 10047920711 | C49: HLADÍK, Josef | D49: IVAR CS - AUTHOR TEAM | E49: 75 | F49: 75 | L49: 0 | V49: 0 | Y49: 33 | Z49: 42
A50: 44 | B50: 10047213823 | C50: ŠULC, David | D50: IVAR CS - AUTHOR TEAM | E50: 73 | F50: 73 | L50: 0 | V50: 0 | Y50: 33 | AA50: 40
A51: 45 | B51: 10047262424 | C51: PAPÍK, Václav | D51: KOVO PRAHA | E51: 72 | F51: 72 | I51: 15 | J51: 27 | L51: 0 | N51: 10 | P51: 20 | V51: 0
A52: 46 | C52: ČECH, Jan | D52: HEAD PRO TEAM OPAVA | E52: 62 | F52: 62 | K52: 2 | L52: 0 | N52: 15 | T52: 18 | U52: 27 | V52: 0
A53: 47 | B53: 10092892941 | C53: MORONG, Kryštof | D53: TEAM FORMAN CINELLI | E53: 60 | F53: 60 | K53: 1 | L53: 0 | P53: 18 | T53: 17 | U53: 24 | V53: 0
A54: 48 | B54: 10048179880 | C54: HOFMEISTER, Adam | D54: Roman Kreuziger Cycling Academy | E54: 58 | F54: 58 | J54: 18 | L54: 0 | N54: 14 | V54: 0 | X54: 6 | Z54: 20
A55: 49 | C55: KOLAŘÍK Lukáš | D55: TUFO PARDUS Prostějov z.s. | E55: 50 | F55: 50 | K55: 50 | L55: 0 | V55: 0
A56: 50 | B56: 10047455111 | C56: RAČAN, David | D56: ČEZ Cyklo Team Tábor | E56: 49 | F56: 49 | H56: 4 | I56: 1 | L56: 11 | N56: 12 | O56: 21 | V56: 0
A57: 51 | B57: 10058329013 | C57: SÁSKA, Jan | D57: ČS SPECIALIZED JUNIOR MTB TEAM | E57: 45 | F57: 45 | L57: 0 | R57: 45 | V57: 0
A58: 52 | C58: ZATLOUKAL, Jan | D58: NUTREND SPECIALIZED RACING | E58: 45 | F58: 45 | L58: 0 | V58: 0 | AA58: 45
A59: 53 | B59: 10081493825 | C59: JEŘÁBEK, Ondřej | D59: IVAR CS - AUTHOR TEAM | E59: 36 | F59: 36 | L59: 0 | O59: 19 | V59: 0 | Z59: 17
A60: 54 | C60: ŘEHÁK, Martin | D60: TUFO PARDUS Prostějov z.s. | E60: 28 | F60: 28 | J60: 10 | K60: 3 | L60: 0 | V60: 0 | Z60: 15
A61: 55 | B61: 10093334491 | C61: KŘIVANEC, Karel | D61: Bike Freaks Holice | E61: 23 | F61: 23 | L61: 0 | N61: 23 | V61: 0
A62: 56 | C62: MALÍK Matyáš | D62: BIKE 2000 | E62: 23 | F62: 23 | K62: 1 | L62: 0 | U62: 22 | V62: 0
A63: 57 | B63: 10085678868 | C63: LEDECKÝ, Filip | D63: ČEZ Cyklo Team Tábor | E63: 22 | F63: 22 | L63: 0 | Q63: 22 | V63: 0
A64: 58 | C64: VINKLÁREK, František | D64: 4EVER CYKLOBULIS BYSTŘICE p.H. | E64: 22 | F64: 22 | L64: 0 | N64: 22 | V64: 0
A65: 59 | B65: 10058808454 | C65: ŠUBRT, Jan | D65: AXON SPORT TEAM | E65: 22 | F65: 22 | J65: 22 | L65: 0 | V65: 0
A66: 60 | B66: 10083489500 | C66: HOLUB, Jakub | D66: TJ PLAMEN CHODOV, z.s. | E66: 20 | F66: 20 | L66: 0 | O66: 20 | V66: 0
A67: 61 | B67: 10012585631 | C67: DANĚK Filip | D67: MS BIKE ACADEMY RACING | E67: 20 | F67: 20 | I67: 1 | L67: 0 | P67: 19 | V67: 0
A68: 62 | B68: 10047444805 | C68: STIBAL, Adam | D68: CYCLING ACADEMY TÁBOR | E68: 19 | F68: 19 | L68: 0 | Q68: 19 | V68: 0
A69: 63 | C69: GORNER, Dominik | D69: TJ FAVORIT BRNO | E69: 19 | F69: 19 | L69: 0 | V69: 0 | Z69: 19
A70: 64 | B70: 10047418432 | C70: CHRZ, Petr | D70: AUTHOR TEAm STUPNO | E70: 18 | F70: 18 | L70: 0 | O70: 18 | V70: 0
A71: 65 | B71: 10077349905 | C71: PRCHLÍK, Kryštof | D71: KC KOOPERATIVA Jablonec nad Nisou, z.s. | E71: =SUM(G71:AD71) -> 18 | F71: 18 | J71: 11 | L71: 7 | V71: 0
A72: 66 | B72: 10081601737 | C72: PLEŠINEC, Roman | D72: SK PETŘÍN PLZEŇ | E72: 16 | F72: 16 | L72: 0 | N72: 16 | V72: 0
A73: 67 | B73: 10047324462 | C73: VÁVRA, Erik | D73: ACK Stará Ves nad Ondřejnicí | E73: 15 | F73: 15 | H73: 15 | L73: 0 | V73: 0
A74: 68 | C74: ŠTĚPÁN, Ferdinand | D74: TEAM FORMAN CINELLI | E74: 15 | F74: 15 | L74: 0 | T74: 15 | V74: 0
A75: 69 | C75: ŠINDELÁŘ, Jan | D75: HEAD PRO TEAM OPAVA | E75: 14 | F75: 14 | L75: 0 | V75: 0 | X75: 14
A76: 70 | B76: 10047307082 | C76: TOUL, Daniel | D76: KOVO PRAHA | E76: 14 | F76: 14 | I76: 5 | J76: 9 | L76: 0 | V76: 0

Sheet Jky
A1: Průběžné pořadí ČP mládeže a žen 2019
A3: JUNIORKY
A4: Datum 28. 5. 2019 | B4: 2019-09-09 | C4: 19:43:24 | D4: Last RECALCULATION
A6: Pořadí | B6: UCI ID | C6: Jméno a příjmení | D6: Oddíl | E6: Body CLK | F6: Body TOP | G6: Soběslav krit | H6: Kyjov Krit. | I6: Olomouc | J6: Plzeň Krit | K6: Ostrava krit. | L6: Jablonec n. N. | M6: Terezín | N6: Zbraslav Sil. | O6: Kyjov Sil. | P6: Olomouc | Q6: Kroměříž | R6: Plzeň | S6: Bílovec | T6: Nový Jičín | U6: Ostrava | V6: Jablonec n. N. | W6: Židovice | X6: MČR ČJ | Y6: MČR ČD | Z6: MČR
A7: 1 | B7: 10047392766 | C7: LOCHMANOVÁ, Aneta | D7: MG Bike Team | E7: =SUM(G7:AK7) -> 914 | F7: 821 | I7: 18 | J7: 30 | K7: 30 | L7: 50 | N7: 48 | O7: 60 | P7: 45 | Q7: 51 | R7: 100 | S7: 100 | T7: 100 | U7: 100 | V7: 60 | X7: 47 | Z7: 75
A8: 2 | B8: 10047281622 | C8: HARTYCHOVÁ, Nicole | D8: MITAS MERCEDES - BENZ PRAHA TREK | E8: 916 | F8: 791 | G8: 30 | H8: 22 | I8: 30 | J8: 50 | K8: 50 | L8: 37 | N8: 60 | O8: 55 | P8: 55 | Q8: 75 | R8: 55 | S8: 48 | T8: 60 | U8: 60 | V8: 55 | X8: 84 | Z8: 90
A9: 3 | B9: 10047208365 | C9: BURLOVÁ, Kristýna | D9: TEAM DUKLA PRAHA | E9: 650 | F9: 650 | G9: 50 | H9: 50 | I9: 50 | L9: 0 | N9: 100 | O9: 100 | P9: 100 | Q9: 100 | V9: 100
A10: 4 | B10: 10047371144 | C10: NAVRKALOVÁ, Michaela | D10: KC KOOPERATIVA Jablonec nad Nisou, z.s. | E10: 624 | F10: 624 | I10: 24 | K10: 37 | L10: 24 | O10: 48 | P10: 51 | Q10: 55 | S10: 60 | T10: 55 | U10: 75 | V10: 51 | X10: 41 | Y10: 33 | Z10: 70
A11: 5 | B11: 10092874046 | C11: SVOBODOVÁ, Gabriela | D11: TJ FAVORIT BRNO | E11: 682 | F11: 598 | I11: 20 | J11: 37 | K11: 27 | L11: 22 | N11: 51 | O11: 45 | P11: 60 | Q11: 42 | R11: 75 | S11: 75 | T11: 51 | U11: 55 | V11: 42 | X11: 35 | Z11: 45
A12: 6 | B12: 10047786325 | C12: OBOŘILOVÁ Tereza | D12: DRAHANSKÝ SPORT TEAM | E12: 575 | F12: 575 | L12: 30 | P12: 75 | Q12: 60 | T12: 75 | V12: 75 | X12: 60 | Y12: 50 | Z12: 150
A13: 7 | B13: 10047254845 | C13: DŽERENGOVÁ, Sabina | D13: TEAM DUKLA PRAHA | E13: 433 | F13: 433 | H13: 24 | I13: 22 | J13: 27 | L13: 0 | O13: 51 | R13: 60 | V13: 45 | X13: 54 | Y13: 40 | Z13: 110
A14: 8 | B14: 10047256764 | C14: JANDOVÁ, Veronika | D14: TJ FAVORIT BRNO | E14: 425 | F14: 425 | H14: 35 | L14: 0 | N14: 75 | O14: 75 | V14: 0 | X14: 110 | Y14: 50 | Z14: 80
A15: 9 | B15: 10087884408 | C15: VAN NECK, Alysha | D15: TEAM DUKLA PRAHA | E15: 304 | F15: 304 | G15: 37 | H15: 27 | I15: 27 | L15: 0 | N15: 45 | V15: 0 | X15: 68 | Y15: 40 | Z15: 60
A16: 10 | B16: 10047329718 | C16: KLÍMOVÁ, Natálie | D16: IVAR CS - AUTHOR TEAM | E16: 273 | F16: 273 | I16: 37 | L16: 21 | N16: 42 | Q16: 48 | V16: 48 | X16: 44 | Y16: 33
A17: 11 | B17: 10065348072 | C17: KACALKOVÁ, Vendula | D17: SKP DUHA Lanškroun | E17: 226 | F17: 226 | I17: 19 | K17: 22 | L17: 0 | O17: 42 | S17: 55 | V17: 0 | X17: 38 | Z17: 50
A18: 12 | B18: 10092980544 | C18: KRAVÁKOVÁ, Gabriela | D18: MG Bike Team | E18: 223 | F18: 223 | I18: 16 | J18: 22 | L18: 20 | S18: 45 | T18: 48 | V18: 40 | X18: 32
A19: 13 | B19: 10048205243 | C19: BOJKOVÁ Michaela | D19: BIKE 2000 | E19: 171 | F19: 171 | K19: 24 | L19: 0 | Q19: 45 | S19: 51 | U19: 51 | V19: 0
A20: 14 | B20: 10047338509 | C20: MEDKOVÁ, Veronika | D20: SportRaces Isaac Team | E20: 147 | F20: 147 | I20: 17 | J20: 24 | L20: 0 | R20: 51 | V20: 0 | Z20: 55
A21: 15 | B21: 10047409944 | C21: SOUČKOVÁ, Anna | D21: KOVO PRAHA | E21: 120 | F21: 120 | L21: 0 | N21: 55 | V21: 0 | Z21: 65
A22: 16 | B22: 10097269358 | C22: STRNADOVÁ, Alexandra | D22: CK Příbram - Fany GASTRO | E22: 57 | F22: 57 | L22: 19 | V22: 38
A23: 17 | B23: 10047781978 | C23: VERNEROVÁ, Klára | D23: IVAR CS - AUTHOR TEAM | E23: 56 | F23: 56 | H23: 37 | L23: 19 | V23: 0
A24: 18 | B24: 10090732366 | C24: NOVÁČKOVÁ, Barbora | D24: TJ STADION LOUNY | E24: 52 | F24: 52 | I24: 15 | L24: 0 | V24: 37
A25: 19 | B25: 10047372861 | C25: VAKULOVÁ, Jitka | D25: Elkov Autrhor Junior Team | E25: 50 | F25: 50 | L25: 0 | V25: 0 | X25: 50
A26: 20 | B26: 10047347296 | C26: DUBSKÁ, Kateřina | D26: HEAD PRO TEAM OPAVA | E26: 46 | F26: 46 | L26: 0 | V26: 0 | Z26: 46
A27: 21 | B27: 10092873945 | C27: FILIPOVÁ, Eva | D27: TJ FAVORIT BRNO | E27: 40 | F27: 40 | L27: 0 | O27: 40 | V27: 0
A28: 22 | B28: 10047324159 | C28: ŠTEFANOVÁ, Kateřina | D28: Jaroslav Kulhavy Cycling Team | E28: 27 | F28: 27 | L28: 27 | V28: 0
A29: 23 | B29: 10047344973 | C29: PLCHOVÁ, Pavlína | D29: FORCE TEAM JESENÍK | E29: 0 | F29: 0 | L29: 0 | V29: 0

Sheet K
A1: Průběžné pořadí ČP mládeže a žen 2019
A3: KADETI
A4: Datum 6. 7. 2019 | B4: 2019-09-09 | C4: 19:46:39 | D4: Last RECALCULATION
A6: Pořadí | B6: UCI ID | C6: Jméno a příjmení | D6: Oddíl | E6: Body CLK | F6: Body TOP | G6: Soběslav krit | H6: Kyjov Krit. | I6: Olomouc | J6: Plzeň Krit | K6: Ostrava krit. | L6: Jablonec n. N. | M6: Terezín | N6: Olomouc | O6: Kyjov Sil. | P6: Kroměříž | Q6: Zbraslav Sil. | R6: Plzeň | S6: Bílovec | T6: Nový Jičín | U6: Ostrava | V6: Jablonec n. N. | W6: Židovice | X6: MČR ČJ | Y6: MČR ČD | Z6: MČR | AA6: Jevíčko
A7: 1 | B7: 10047201392 | C7: TELECKÝ, Štěpán | D7: TJ FAVORIT BRNO | E7: =SUM(G7:AL7) -> 785 | F7: 768 | G7: 18 | H7: 20 | I7: 27 | J7: 3 | L7: 50 | N7: 48 | O7: 55 | P7: 17 | Q7: 32 | R7: 33 | S7: 48 | T7: 33 | V7: 100 | X7: 110 | Y7: 40 | Z7: 40 | AA7: 111
A8: 2 | B8: 10018791712 | C8: MRÁZ, Daniel | D8: MAPEI MERIDA KAŇKOVSKÝ | E8: 854 | F8: 762 | G8: 50 | H8: 24 | I8: 50 | J8: 37 | K8: 30 | L8: 24 | N8: 30 | O8: 100 | P8: 51 | Q8: 38 | R8: 51 | S8: 60 | T8: 48 | U8: 48 | V8: 55 | X8: 35 | Y8: 33 | Z8: 90
A9: 3 | B9: 10047287783 | C9: JELÍNEK, Marek | D9: CYKLO MIKULÁŠEK ZNOJMO o.s. | E9: 786 | F9: 750 | G9: 21 | H9: 21 | I9: 15 | J9: 50 | L9: 20 | N9: 38 | O9: 36 | P9: 48 | Q9: 40 | R9: 55 | S9: 100 | T9: 100 | V9: 75 | X9: 17 | Y9: 40 | Z9: 110
A10: 4 | B10: 10056008184 | C10: SEEMAN, Adam | D10: TJ STADION LOUNY | E10: 666 | F10: 666 | G10: 20 | H10: 3 | I10: 19 | J10: 14 | L10: 27 | N10: 25 | O10: 75 | P10: 75 | Q10: 45 | R10: 48 | V10: 48 | X10: 68 | Y10: 50 | Z10: 50 | AA10: 99
A11: 5 | B11: 10047292635 | C11: VALL, Jan | D11: MAPEI MERIDA KAŇKOVSKÝ | E11: 665 | F11: 644 | G11: 17 | H11: 1 | I11: 13 | J11: 12 | K11: 37 | L11: 12 | O11: 33 | P11: 34 | Q11: 55 | R11: 35 | S11: 75 | T11: 60 | U11: 100 | V11: 20 | X11: 0 | Y11: 4 | Z11: 55 | AA11: 102
A12: 6 | B12: 10047292130 | C12: OBDRŽÁLEK, Tomáš | D12: MAPEI MERIDA KAŇKOVSKÝ | E12: 654 | F12: 626 | H12: 17 | I12: 9 | J12: 18 | K12: 24 | L12: 19 | N12: 51 | P12: 28 | Q12: 42 | R12: 36 | S12: 51 | T12: 38 | U12: 75 | V12: 37 | X12: 26 | Y12: 33 | Z12: 150
A13: 7 | B13: 10059931735 | C13: ŠIROKÝ, Štěpán | D13: TJ FAVORIT BRNO | E13: 611 | F13: 582 | G13: 37 | H13: 22 | I13: 18 | J13: 24 | L13: 37 | N13: 29 | O13: 29 | P13: 42 | Q13: 51 | R13: 34 | S13: 29 | T13: 35 | V13: 60 | X13: 44 | Y13: 40 | Z13: 80
A14: 8 | B14: 10047235647 | C14: ČEPEK, Martin | D14: DUKLA PRAHA | E14: 587 | F14: 573 | G14: 24 | H14: 50 | I14: 17 | J14: 22 | K14: 15 | L14: 0 | N14: 28 | O14: 32 | P14: 30 | Q14: 100 | R14: 32 | S14: 20 | T14: 7 | U14: 7 | V14: 27 | X14: 54 | Y14: 28 | Z14: 39 | AA14: 55
A15: 9 | B15: 10047400547 | C15: KOBLÍŽEK, Matyáš | D15: TUFO PARDUS Prostějov z.s. | E15: 489 | F15: 489 | G15: 30 | H15: 11 | I15: 37 | J15: 30 | L15: 8 | N15: 42 | P15: 100 | Q15: 19 | R15: 42 | V15: 51 | X15: 38 | Y15: 16 | Z15: 65
A16: 10 | B16: 10048001139 | C16: VÁVRA, Petr | D16: DUKLA PRAHA | E16: 508 | F16: 462 | G16: 22 | H16: 19 | I16: 16 | J16: 8 | K16: 18 | L16: 27 | N16: 16 | O16: 31 | P16: 27 | Q16: 48 | R16: 75 | S16: 37 | T16: 23 | U16: 42 | V16: 22 | X16: 6 | Y16: 28 | Z16: 43
A17: 11 | B17: 10047224937 | C17: STRÁNSKÝ, Matěj | D17: IVAR CS - AUTHOR TEAM | E17: 453 | F17: 453 | G17: 27 | H17: 27 | I17: 30 | L17: 14 | N17: 45 | O17: 40 | P17: 32 | Q17: 34 | V17: 26 | X17: 23 | Y17: 20 | Z17: 75 | AA17: 60
A18: 12 | B18: 10047348108 | C18: STŘÍŽ, Matyáš | D18: LOKO CAMPAGNOLO KRNOV | E18: 451 | F18: 435 | I18: 12 | K18: 21 | L18: 21 | N18: 23 | O18: 16 | P18: 40 | Q18: 22 | S18: 42 | T18: 55 | U18: 55 | V18: 40 | X18: 60 | Y18: 0 | Z18: 44
A19: 13 | B19: 10047394382 | C19: OTTA, Josef | D19: RBB INVEST FORCE CYCLING TEAM | E19: 389 | F19: 389 | G19: 14 | H19: 10 | J19: 4 | K19: 17 | L19: 13 | N19: 32 | O19: 45 | Q19: 26 | R19: 28 | T19: 34 | U19: 45 | V19: 36 | X19: 32 | Y19: 24 | Z19: 29
A20: 14 | B20: 10047212712 | C20: KAŇKOVSKÝ, Adam | D20: MAPEI MERIDA KAŇKOVSKÝ | E20: 388 | F20: 388 | G20: 11 | J20: 27 | K20: 50 | L20: 0 | P20: 55 | R20: 45 | S20: 16 | T20: 20 | U20: 38 | V20: 28 | X20: 5 | Y20: 33 | Z20: 60
A21: 15 | B21: 10092747542 | C21: FIALA, Matyáš | D21: ČEZ Cyklo Team Tábor | E21: 372 | F21: 372 | I21: 24 | L21: 22 | N21: 75 | P21: 60 | V21: 34 | X21: 84 | Y21: 50 | Z21: 23
A22: 16 | B22: 10055481556 | C22: HAVRLANT, Jakub | D22: MAPEI MERIDA KAŇKOVSKÝ | E22: 425 | F22: 371 | G22: 7 | I22: 2 | J22: 11 | K22: 6 | L22: 4 | N22: 55 | O22: 37 | P22: 36 | Q22: 36 | R22: 30 | S22: 55 | T22: 32 | U22: 60 | V22: 24 | X22: 5 | Y22: 4 | Z22: 21
A23: 17 | B23: 10047286672 | C23: DOSTÁL, Václav | D23: LYKO KLUB PRACHATICE z.s. | E23: 351 | F23: 351 | I23: 14 | L23: 15 | N23: 37 | O23: 34 | P23: 33 | Q23: 24 | R23: 27 | V23: 42 | X23: 5 | Y23: 50 | Z23: 70
A24: 18 | B24: 10047431263 | C24: KADLEC, Milan | D24: DUKLA PRAHA | E24: 371 | F24: 350 | G24: 13 | H24: 9 | J24: 13 | K24: 12 | L24: 30 | N24: 6 | O24: 28 | P24: 18 | Q24: 35 | R24: 17 | S24: 23 | T24: 15 | U24: 33 | V24: 45 | X24: 5 | Y24: 28 | Z24: 41
A25: 19 | B25: 10047357808 | C25: HÁK, Jakub | D25: Jaroslav Kulhavy Cycling Team | E25: 414 | F25: 348 | H25: 14 | K25: 20 | L25: 0 | N25: 35 | O25: 38 | P25: 31 | Q25: 37 | R25: 60 | S25: 36 | T25: 47 | U25: 51 | V25: 35 | X25: 0 | Y25: 0 | Z25: 10
A26: 20 | B26: 10046370125 | C26: JINDŘICH, Pavel | D26: TJ STADION LOUNY | E26: 335 | F26: 335 | H26: 16 | I26: 3 | J26: 17 | L26: 19 | O26: 51 | P26: 45 | Q26: 21 | R26: 13 | V26: 31 | X26: 41 | Y26: 50 | Z26: 28
A27: 21 | B27: 10082677326 | C27: BORKOVEC, Matyáš | D27: KOVO PRAHA | E27: 328 | F27: 328 | G27: 12 | I27: 10 | J27: 16 | L27: 0 | N27: 27 | O27: 14 | P27: 37 | Q27: 28 | R27: 40 | T27: 45 | V27: 38 | X27: 13 | Y27: 12 | Z27: 36
A28: 22 | B28: 10047248377 | C28: ČERVÍČEK, David | D28: DUKLA PRAHA | E28: 302 | F28: 286 | G28: 16 | H28: 7 | I28: 1 | J28: 1 | K28: 7 | L28: 10 | N28: 20 | O28: 20 | P28: 29 | Q28: 33 | R28: 15 | T28: 31 | U28: 21 | V28: 18 | X28: 0 | Y28: 28 | Z28: 45
A29: 23 | B29: 10047263434 | C29: VONDRÁČEK, Jan | D29: RBB INVEST FORCE CYCLING TEAM | E29: 279 | F29: 277 | G29: 19 | H29: 2 | I29: 7 | J29: 5 | K29: 16 | L29: 9 | N29: 33 | O29: 22 | Q29: 75 | R29: 4 | T29: 30 | U29: 25 | V29: 32 | X29: 0 | Y29: 0
A30: 24 | B30: 10047443084 | C30: VEVERKA, Václav | D30: KC KOOPERATIVA Jablonec nad Nisou, z.s. | E30: 259 | F30: 259 | J30: 1 | K30: 1 | L30: 11 | N30: 21 | O30: 7 | P30: 21 | Q30: 30 | R30: 26 | U30: 15 | V30: 29 | X30: 47 | Y30: 20 | Z30: 30
A31: 25 | B31: 10047448845 | C31: VANÍČEK, Šimon | D31: SPORTCOMPLEX BŘECLAV | E31: 257 | F31: 245 | G31: 8 | K31: 2 | L31: 0 | N31: 24 | O31: 25 | Q31: 31 | R31: 21 | S31: 31 | T31: 27 | U31: 37 | V31: 12 | X31: 0 | Y31: 8 | Z31: 31
A32: 26 | B32: 10047362050 | C32: KOVAŘČÍK, Petr | D32: TUFO PARDUS Prostějov z.s. | E32: 241 | F32: 241 | H32: 12 | J32: 19 | K32: 27 | L32: 0 | N32: 31 | Q32: 3 | R32: 37 | S32: 32 | U32: 32 | V32: 0 | X32: 8 | Y32: 16 | Z32: 24
A33: 27 | B33: 10086057875 | C33: NOVÁK, Pavel | D33: RBB INVEST FORCE CYCLING TEAM | E33: 224 | F33: 224 | H33: 1 | J33: 7 | K33: 5 | L33: 16 | N33: 22 | O33: 21 | Q33: 20 | R33: 3 | U33: 27 | V33: 17 | X33: 29 | Y33: 24 | Z33: 32
A34: 28 | B34: 10047319917 | C34: DUBČÁK, Pavel | D34: 4EVER CYKLOBULIS BYSTŘICE p.H. | E34: 210 | F34: 210 | L34: 0 | N34: 36 | O34: 23 | P34: 24 | S34: 45 | T34: 36 | V34: 0 | X34: 0 | Y34: 0 | Z34: 46
A35: 29 | B35: 10047415196 | C35: PŘIDAL, Tomáš | D35: MAPEI MERIDA KAŇKOVSKÝ | E35: 207 | F35: 206 | G35: 6 | K35: 9 | L35: 3 | N35: 18 | O35: 24 | P35: 26 | Q35: 15 | S35: 34 | T35: 1 | U35: 28 | V35: 21 | X35: 0 | Y35: 4 | Z35: 18
A36: 30 | B36: 10047763689 | C36: DOLEŽAL, Tomáš | D36: IVAR CS - AUTHOR TEAM | E36: 203 | F36: 203 | I36: 1 | L36: 2 | N36: 40 | O36: 42 | P36: 23 | Q36: 29 | V36: 33 | X36: 0 | Y36: 20 | Z36: 13
A37: 31 | B37: 10092869905 | C37: KRUPKA, Štěpán | D37: Carla.kupkolo.cz | E37: 200 | F37: 200 | K37: 14 | L37: 1 | O37: 1 | Q37: 23 | R37: 31 | S37: 19 | T37: 42 | U37: 31 | V37: 15 | X37: 11 | Y37: 12
A38: 32 | B38: 10047443589 | C38: ŠTEC, Radovan | D38: TUFO PARDUS Prostějov z.s. | E38: 183 | F38: 183 | H38: 15 | I38: 11 | L38: 0 | N38: 17 | O38: 6 | P38: 35 | Q38: 60 | U38: 9 | V38: 0 | X38: 14 | Y38: 16
A39: 33 | B39: 10056004346 | C39: SPORYSCH, Daniel | D39: EXPRES CZ - TUFO TEAM KOLÍN | E39: =SUM(G39:AL39) -> 181 | F39: 181 | H39: 13 | L39: 0 | O39: 48 | Q39: 27 | R39: 19 | V39: 0 | X39: 0 | Y39: 0 | Z39: 19 | AA39: 55
A40: 34 | B40: 10047261616 | C40: MÜLLER, Mirek | D40: MAPEI MERIDA KAŇKOVSKÝ | E40: 170 | F40: 170 | G40: 15 | J40: 10 | K40: 19 | L40: 0 | N40: 14 | Q40: 14 | R40: 1 | S40: 18 | T40: 3 | U40: 35 | V40: 0 | X40: 0 | Y40: 4 | Z40: 37
A41: 35 | B41: 10046677087 | C41: CÍRKVA, Vojtěch | D41: Roman Kreuziger Cycling Academy | E41: 137 | F41: 137 | J41: 15 | L41: 0 | N41: 1 | O41: 11 | R41: 38 | U41: 16 | V41: 30 | X41: 0 | Y41: 0 | Z41: 26
A42: 36 | B42: 10047266969 | C42: KRULA, Štěpán | D42: MS BIKE ACADEMY RACING | E42: 133 | F42: 133 | J42: 21 | L42: 0 | P42: 22 | Q42: 25 | R42: 23 | V42: 0 | X42: 0 | Y42: 0 | Z42: 42
A43: 37 | B43: 10047281319 | C43: STANĚK, Jakub | D43: Roman Kreuziger Cycling Academy | E43: 131 | F43: 131 | G43: 10 | J43: 1 | K43: 4 | L43: 1 | N43: 1 | R43: 20 | T43: 16 | U43: 26 | V43: 14 | X43: 0 | Y43: 0 | Z43: 38
A44: 38 | B44: 10047249589 | C44: SOLAŘ, Albert | D44: MAPEI MERIDA KAŇKOVSKÝ | E44: 119 | F44: 119 | G44: 2 | L44: 0 | O44: 5 | P44: 14 | Q44: 16 | S44: 24 | V44: 0 | X44: 9 | Y44: 33 | Z44: 16
A45: 39 | B45: 10047310015 | C45: VAJBAR, Jakub | D45: SPORTCOMPLEX BŘECLAV | E45: 118 | F45: 118 | J45: 20 | K45: 10 | L45: 0 | P45: 1 | R45: 5 | S45: 22 | T45: 9 | U45: 8 | V45: 0 | X45: 0 | Y45: 8 | Z45: 35
A46: 40 | B46: 10005541613 | C46: VYSOČAN, Daniel | D46: TJ FAVORIT BRNO | E46: 109 | F46: 109 | G46: 1 | L46: 6 | O46: 3 | Q46: 10 | R46: 24 | S46: 30 | T46: 24 | V46: 11 | X46: 0 | Y46: 0
A47: 41 | B47: 10084713013 | C47: Adam KUBÍK | D47: CYCLING ACADEMY TÁBOR | E47: 106 | F47: 106 | I47: 5 | L47: 0 | N47: 34 | P47: 9 | V47: 0 | X47: 0 | Y47: 24 | Z47: 34
A48: 42 | B48: 10047353562 | C48: HUSIČKA, Radim | D48: TJ Sigma Hranice z.s. | E48: 104 | F48: 104 | K48: 1 | L48: 0 | O48: 1 | S48: 40 | T48: 29 | U48: 23 | V48: 0 | X48: 0 | Y48: 0 | Z48: 10
A49: 43 | B49: 10004976989 | C49: DOHNAL, Filip | D49: KOVO PRAHA | E49: 102 | F49: 102 | G49: 9 | K49: 1 | L49: 0 | P49: 15 | T49: 25 | U49: 40 | V49: 0 | X49: 0 | Y49: 12
A50: 44 | B50: 10085678464 | C50: ŠIGUT, David | D50: ACK Stará Ves nad Ondřejnicí | E50: 94 | F50: 94 | L50: 0 | S50: 33 | T50: 28 | U50: 22 | V50: 0 | X50: 0 | Y50: 0 | Z50: 11
A51: 45 | B51: 10058654264 | C51: HYTYCH, Matěj | D51: TJ FAVORIT BRNO | E51: 93 | F51: 93 | K51: 11 | L51: 1 | N51: 19 | P51: 16 | Q51: 9 | R51: 1 | U51: 12 | V51: 4 | X51: 0 | Y51: 8 | Z51: 12
A52: 46 | B52: 10064363524 | C52: KYJONKA, Štěpán | D52: CK FESO PETŘVALD | E52: 91 | F52: 91 | K52: 3 | L52: 0 | P52: 5 | Q52: 5 | S52: 25 | U52: 36 | V52: 0 | X52: 0 | Y52: 0 | Z52: 17
A53: 47 | B53: 10047376905 | C53: VYKYDAL, Jaroslav | D53: TJ AŠ ML.BOLESLAV | E53: 90 | F53: 90 | G53: 5 | L53: 0 | N53: 11 | P53: 6 | R53: 14 | V53: 0 | X53: 10 | Y53: 24 | Z53: 20
A54: 48 | B54: 10053331085 | C54: ŠVEJDAR, Marek | D54: TJ PLAMEN CHODOV, z.s. | E54: 82 | F54: 82 | L54: 0 | N54: 8 | P54: 20 | R54: 12 | T54: 12 | U54: 30 | V54: 0 | X54: 0 | Y54: 0
A55: 49 | B55: 10047985476 | C55: VOŽENÍLEK, Martin | D55: HEAD PRO Team | E55: 80 | F55: 80 | L55: 0 | O55: 30 | V55: 0 | X55: 50 | Y55: 0
A56: 50 | B56: 10047423179 | C56: RUBÁŠ, Matouš | D56: AC SPARTA PRAHA | E56: 79 | F56: 79 | H56: 18 | J56: 9 | L56: 5 | Q56: 6 | R56: 18 | V56: 23 | X56: 0 | Y56: 0
A57: 51 | B57: 10047440862 | C57: JANÍČEK, Jakub | D57: TJ FAVORIT BRNO | E57: 78 | F57: 78 | L57: 0 | N57: 9 | R57: 9 | S57: 27 | T57: 1 | U57: 24 | V57: 8 | X57: 0 | Y57: 0
A58: 52 | B58: 10047335778 | C58: MAJDANICS, Marek | D58: ACK Stará Ves nad Ondřejnicí | E58: 76 | F58: 76 | H58: 1 | L58: 0 | O58: 12 | S58: 35 | T58: 8 | V58: 0 | X58: 20 | Y58: 0
A59: 53 | B59: 10089720132 | C59: CHOMA, Eduard | D59: MG Bike Team | E59: 75 | F59: 75 | L59: 0 | Q59: 1 | S59: 21 | T59: 19 | U59: 34 | V59: 0 | X59: 0 | Y59: 0
A60: 54 | B60: 10085014521 | C60: DRÁPELA, Matěj | D60: MAPEI MERIDA KAŇKOVSKÝ | E60: 73 | F60: 73 | L60: 0 | R60: 11 | S60: 12 | T60: 5 | U60: 29 | V60: 16 | X60: 0 | Y60: 0
A61: 55 | B61: 10002585537 | C61: SYRKO, Adam | D61: ACK Stará Ves nad Ondřejnicí | E61: 71 | F61: 71 | K61: 8 | L61: 0 | S61: 15 | T61: 10 | U61: 13 | V61: 0 | X61: 0 | Y61: 0 | Z61: 25
A62: 56 | B62: 10047168454 | C62: POKORNÝ, Ondřej | D62: TUFO PARDUS Prostějov z.s. | E62: 67 | F62: 67 | G62: 1 | L62: 0 | N62: 15 | P62: 7 | T62: 18 | U62: 17 | V62: 9 | X62: 0 | Y62: 0
A63: 57 | B63: 10047329314 | C63: PADĚLEK, Viktor | D63: TJ FAVORIT BRNO | E63: 65 | F63: 65 | G63: 3 | L63: 0 | O63: 4 | P63: 4 | R63: 2 | S63: 38 | T63: 1 | V63: 1 | X63: 12 | Y63: 0
A64: 58 | B64: 10047853922 | C64: LUKEŠ, Jan | D64: Carla.kupkolo.cz | E64: 62 | F64: 62 | G64: 4 | L64: 0 | N64: 1 | O64: 10 | R64: 8 | V64: 5 | X64: 7 | Y64: 12 | Z64: 15
A65: 59 | B65: 10014238671 | C65: VENC, Adam | D65: GT Opportunity Brno | E65: 61 | F65: 61 | H65: 8 | L65: 0 | O65: 8 | Q65: 18 | V65: 0 | X65: 0 | Y65: 0 | Z65: 27
A66: 60 | B66: 10047444195 | C66: ZOAITTER, René | D66: PROFI SPORT CHEB | E66: 60 | F66: 60 | G66: 1 | J66: 6 | L66: 0 | Q66: 12 | R66: 22 | V66: 19 | X66: 0 | Y66: 0
A67: 61 | B67: 10093181921 | C67: PROCHÁZKA, Stanislav | D67: SK BIKETIME BULLS PÍSEK | E67: 58 | F67: 58 | K67: 22 | L67: 0 | R67: 16 | U67: 20 | V67: 0 | X67: 0 | Y67: 0
A68: 62 | B68: 10082747953 | C68: HOLEC Timon | D68: TJ FAVORIT BRNO | E68: 49 | F68: 49 | L68: 0 | R68: 10 | S68: 28 | V68: 3 | X68: 0 | Y68: 8
A69: 63 | B69: 10047423785 | C69: PÁVEK, Matyáš | D69: KC KOOPERATIVA Jablonec nad Nisou, z.s. | E69: 47 | F69: 47 | L69: 0 | N69: 3 | P69: 19 | R69: 25 | V69: 0 | X69: 0 | Y69: 0
A70: 64 | B70: 10092930024 | C70: PETŘÍK, Jakub | D70: SKP DUHA Lanškroun | E70: 47 | F70: 47 | G70: 1 | L70: 0 | P70: 12 | Q70: 7 | S70: 26 | V70: 1 | X70: 0 | Y70: 0
A71: 65 | B71: 10047375083 | C71: JECH, Filip | D71: ADASTRA Cycling Team | E71: =SUM(G71:AL71) -> 36 | F71: 36 | L71: 0 | N71: 2 | O71: 17 | Q71: 17 | V71: 0 | X71: 0 | Y71: 0
A72: 66 | B72: 10047337600 | C72: ČÁSLAVSKÝ, Matěj | D72: MS BIKE ACADEMY RACING | E72: 35 | F72: 35 | J72: 1 | L72: 0 | O72: 19 | P72: 8 | Q72: 1 | R72: 6 | V72: 0 | X72: 0 | Y72: 0
A73: 67 | B73: 10047363464 | C73: VOLF, Pavel | D73: CK MTB Maraton Hlinsko | E73: 35 | F73: 35 | L73: 7 | V73: 6 | X73: 0 | Y73: 0 | Z73: 22
A74: 68 | B74: 10047364979 | C74: KULHA, Filip | D74: ŠKC Dubnica n/Váhom | E74: 33 | F74: 33 | L74: 0 | V74: 0 | Z74: 33
A75: 69 | B75: 10047289201 | C75: ŠKUREK, Kryštof | D75: LOKO CAMPAGNOLO KRNOV | E75: 32 | F75: 32 | K75: 1 | L75: 0 | T75: 13 | U75: 18 | V75: 0 | X75: 0 | Y75: 0
A76: 70 | B76: 10047264444 | C76: KERL, Maximilian | D76: AUTHOR TEAM STUPNO | E76: 28 | F76: 28 | H76: 1 | I76: 4 | J76: 2 | L76: 0 | N76: 10 | Q76: 4 | R76: 7 | V76: 0 | X76: 0 | Y76: 0
A77: 71 | B77: 10011516409 | C77: TERŠL, Robin | D77: CYKLOSPORT-PITSTOP.CZ | E77: 26 | F77: 26 | L77: 1 | V77: 25 | X77: 0 | Y77: 0
A78: 72 | B78: 10047269595 | C78: Karel BRUDNÝ | D78: BIKE 2000 | E78: 25 | F78: 25 | L78: 0 | P78: 1 | S78: 10 | U78: 14 | V78: 0 | X78: 0 | Y78: 0
A79: 73 | B79: 10047036492 | C79: MORÁVEK, Michal | D79: TJ FAVORIT BRNO | E79: 25 | F79: 25 | L79: 0 | S79: 13 | U79: 11 | V79: 1
A80: 74 | B80: 10084848106 | C80: POŘÍZKA, Jan | D80: KOVO PRAHA | E80: 24 | F80: 24 | I80: 1 | L80: 0 | Q80: 13 | V80: 10 | X80: 0 | Y80: 0
A81: 75 | B81: 10003176328 | C81: Ondřej POLÁŠEK | D81: BIKE 2000 | E81: 22 | F81: 22 | L81: 0 | P81: 1 | S81: 11 | U81: 10 | V81: 0 | X81: 0 | Y81: 0
A82: 76 | B82: 10046607874 | C82: SVOBODA, Pavel | D82: Vokolek_Cycling_Team | E82: 21 | F82: 21 | L82: 0 | Q82: 2 | T82: 2 | V82: 7 | X82: 0 | Y82: 0 | Z82: 10
A83: 77 | B83: 10058655779 | C83: ŽBÁNEK, Radim | D83: TJ FAVORIT BRNO | E83: 19 | F83: 19 | L83: 0 | P83: 11 | Q83: 8 | V83: 0 | X83: 0 | Y83: 0
A84: 78 | B84: 10063323604 | C84: KONEČNÝ Filip | D84: Bike Team Nové Městona Motavě | E84: 18 | F84: 18 | L84: 0 | O84: 18 | V84: 0 | X84: 0 | Y84: 0
A85: 79 | B85: 10092711166 | C85: OSWALD, Jan | D85: KC KOOPERATIVA Jablonec nad Nisou, z.s. | E85: 16 | F85: 16 | L85: 0 | P85: 2 | Q85: 1 | V85: 13 | X85: 0 | Y85: 0
A86: 80 | B86: 10080408233 | C86: ZÁBRODSKÝ, Filip | D86: LOKO CAMPAGNOLO KRNOV | E86: 15 | F86: 15 | L86: 0 | P86: 1 | S86: 14 | V86: 0 | X86: 0 | Y86: 0
A87: 81 | B87: 10047347906 | C87: FRÜHAUF, Jan | D87: CYKLOSPORT-PITSTOP.CZ | E87: 14 | F87: 14 | L87: 0 | V87: 0 | X87: 0 | Y87: 0 | Z87: 14
A88: 82 | B88: 10047318604 | C88: TITĚRA Tomáš | D88: KOVO PRAHA | E88: 14 | F88: 14 | L88: 0 | P88: 10 | T88: 4 | V88: 0 | X88: 0 | Y88: 0
A89: 83 | B89: 10093081887 | C89: ŠIDLÍK Karel | D89: BIKE PRO RACING | E89: 13 | F89: 13 | L89: 0 | P89: 13 | V89: 0 | X89: 0 | Y89: 0
A90: 84 | C90: VAKOČ, Martin | D90: SK VELO PRAHA | E90: 13 | F90: 13 | K90: 13 | L90: 0 | V90: 0 | X90: 0 | Y90: 0
A91: 85 | B91: 10093020758 | C91: KNOBLOCH, Florian | D91: TJ AŠ ML.BOLESLAV | E91: 11 | F91: 11 | L91: 0 | Q91: 11 | V91: 0 | X91: 0 | Y91: 0
A92: 86 | B92: 10047415095 | C92: ZAJÍČEK, Ondřej | D92: TJ Uničov | E92: 10 | F92: 10 | L92: 0 | V92: 0 | X92: 0 | Y92: 0 | Z92: 10
A93: 87 | B93: 10047134708 | C93: LAMAČ, Martin | D93: KOVO PRAHA | E93: 6 | F93: 6 | L93: 0 | T93: 6 | V93: 0 | X93: 0 | Y93: 0
A94: 88 | B94: 10047319109 | C94: FOIST, Štěpán | D94: KOVO PRAHA | E94: 6 | F94: 6 | L94: 0 | U94: 6 | V94: 0 | X94: 0 | Y94: 0
A95: 89 | B95: 10003021936 | C95: VRÁNA, David | D95: Dakom Pharma Kyjov | E95: 5 | F95: 5 | L95: 0 | U95: 5 | V95: 0 | X95: 0 | Y95: 0
A96: 90 | B96: 10047318705 | C96: VIK, Matěj | D96: DUKLA PRAHA | E96: 5 | F96: 5 | L96: 0 | N96: 4 | V96: 1 | X96: 0 | Y96: 0
A97: 91 | B97: 10047369124 | C97: Antonín HONSA | D97: ČS Specialized Junior MTB team | E97: 4 | F97: 4 | L97: 0 | P97: 3 | R97: 1 | V97: 0 | X97: 0 | Y97: 0
A98: 92 | B98: 10046409430 | C98: MAZEL, Ondřej | D98: TUFO PARDUS Prostějov z.s. | E98: 4 | F98: 4 | L98: 0 | U98: 4 | V98: 0 | X98: 0 | Y98: 0
A99: 93 | B99: 10047439347 | C99: ŠVEC, Libor | D99: GALAXY CYKLOŠVEC STEVENS | E99: 2 | F99: 2 | L99: 0 | V99: 2 | X99: 0 | Y99: 0
A100: 94 | B100: 10051849514 | C100: HOLUB, Filip | D100: GT Opportunity Brno | E100: 1 | F100: 1 | L100: 0 | O100: 1 | V100: 0 | X100: 0 | Y100: 0
A101: 95 | B101: 10047779756 | C101: PAŘÍK, Vojtěch | D101: TJ AŠ ML.BOLESLAV | E101: 1 | F101: 1 | L101: 0 | Q101: 1 | V101: 0 | X101: 0 | Y101: 0
A102: 96 | B102: 10041675729 | C102: VLAS, Jakub | D102: MS BIKE ACADEMY RACING | E102: 1 | F102: 1 | L102: 0 | R102: 1 | V102: 0 | X102: 0 | Y102: 0
A103: 97 | B103: 10083874870 | C103: KOŠÍK, Pavel | D103: AC SPARTA PRAHA | E103: =SUM(G103:AL103) -> 0 | F103: 0 | L103: 0 | V103: 0 | X103: 0 | Y103: 0
A104: 98 | B104: 10047315267 | C104: FIÁLEK, David | D104: ACS DRAK VRBNO | E104: 0 | F104: 0 | L104: 0 | V104: 0 | X104: 0 | Y104: 0
A105: 99 | B105: 10047409641 | C105: LHOTÁK, Václav | D105: Bike Freaks Holice | E105: 0 | F105: 0 | L105: 0 | V105: 0 | X105: 0 | Y105: 0
A106: 100 | B106: 10047417826 | C106: KNÁPEK, František | D106: Dakom Pharma Kyjov | E106: 0 | F106: 0 | L106: 0 | V106: 0 | X106: 0 | Y106: 0
A107: 101 | B107: 10008462727 | C107: BUKAČ, Adam | D107: EXPRES CZ - TUFO TEAM KOLÍN | E107: 0 | F107: 0 | L107: 0 | V107: 0 | X107: 0 | Y107: 0
A108: 102 | B108: 10079418429 | C108: PODZIMEK, Ondřej | D108: G.BENEDIKT ŠVECCYKLOTEAM ŽELEČ | E108: 0 | F108: 0 | L108: 0 | V108: 0 | X108: 0 | Y108: 0
A109: 103 | B109: 10081599515 | C109: KUBIŠTA, Martin | D109: Jaroslav Kulhavy Cycling Team | E109: 0 | F109: 0 | L109: 0 | V109: 0 | X109: 0 | Y109: 0
A110: 104 | B110: 10085962895 | C110: DAVID, Ondřej | D110: KC KOOPERATIVA Jablonec nad Nisou, z.s. | E110: 0 | F110: 0 | L110: 0 | V110: 0 | X110: 0 | Y110: 0
A111: 105 | B111: 10073653595 | C111: ŠIMEČEK, Marek | D111: LOKOMOTIVA NYMBURK | E111: 0 | F111: 0 | L111: 0 | V111: 0 | X111: 0 | Y111: 0
A112: 106 | B112: 10079504214 | C112: BARTH, Matěj | D112: MS BIKE ACADEMY RACING | E112: 0 | F112: 0 | L112: 0 | V112: 0 | X112: 0 | Y112: 0
A113: 107 | B113: 10079408022 | C113: KREUZER, Lukáš | D113: SK PETŘÍN PLZEŇ | E113: 0 | F113: 0 | L113: 0 | V113: 0 | X113: 0 | Y113: 0
A114: 108 | B114: 10047679221 | C114: ONDRIŠÍK, David | D114: SportRaces Isaac Team | E114: 0 | F114: 0 | L114: 0 | V114: 0 | X114: 0 | Y114: 0
A115: 109 | B115: 10004595962 | C115: OBORNÝ, Marek | D115: TEAM FORMAN CINELLI | E115: 0 | F115: 0 | L115: 0 | V115: 0 | X115: 0 | Y115: 0
A116: 110 | B116: 10047277174 | C116: ČERNÝ, Filip | D116: TJ AŠ ML.BOLESLAV | E116: 0 | F116: 0 | L116: 0 | V116: 0 | X116: 0 | Y116: 0
A117: 111 | B117: 10093020657 | C117: KVÁČ, David | D117: TJ AŠ ML.BOLESLAV | E117: 0 | F117: 0 | L117: 0 | V117: 0 | X117: 0 | Y117: 0
A118: 112 | B118: 10001558145 | C118: BAUER, Tomáš | D118: TJ FAVORIT BRNO | E118: 0 | F118: 0 | L118: 0 | V118: 0 | X118: 0 | Y118: 0
A119: 113 | B119: 10007607107 | C119: MALÁŠEK, Jakub | D119: TJ FAVORIT BRNO | E119: 0 | F119: 0 | L119: 0 | V119: 0 | X119: 0 | Y119: 0
A120: 114 | B120: 10047323048 | C120: POKORNÝ, Matouš | D120: TUFO PARDUS Prostějov z.s. | E120: 0 | F120: 0 | L120: 0 | V120: 0 | X120: 0 | Y120: 0
A121: 115 | B121: 10047208163 | C121: POLANSKÝ, Daniel | D121: TUFO PARDUS Prostějov z.s. | E121: 0 | F121: 0 | L121: 0 | V121: 0 | X121: 0 | Y121: 0

Sheet Kky
A1: Průběžné pořadí ČP mládeže a žen 2019
A3: KADETKY
A4: Datum 6. 7. 2019 | B4: 2019-09-09 | C4: 17:58:13 | D4: Last RECALCULATION
A6: Pořadí | B6: UCI ID | C6: Jméno a příjmení | D6: Oddíl | E6: Body CLK | F6: Body TOP | G6: Soběslav krit | H6: Kyjov Krit. | I6: Olomouc | J6: Plzeň Krit | K6: Ostrava krit. | L6: Jablonec n. N. | M6: Terezín | N6: Zbraslav Sil. | O6: Kyjov Sil. | P6: Olomouc | Q6: Kroměříž | R6: Plzeň | S6: Bílovec | T6: Nový Jičín | U6: Ostrava | V6: Jablonec n. N. | W6: Židovice | X6: MČR ČJ | Y6: MČR ČD | Z6: MČR
A7: 1 | B7: 10047309712 | C7: JABORNÍKOVÁ, Anna | D7: SPORTCOMPLEX BŘECLAV | E7: =SUM(G7:AK7) -> 1119 | F7: 1084 | G7: 50 | H7: 30 | I7: 50 | J7: 37 | K7: 22 | L7: 0 | N7: 60 | O7: 35 | P7: 100 | Q7: 100 | R7: 100 | S7: 75 | T7: 100 | U7: 60 | V7: 0 | X7: 110 | Y7: 40 | Z7: 150
A8: 2 | B8: 10047455313 | C8: RŮŽIČKOVÁ, Anna | D8: DUKLA PRAHA | E8: 945 | F8: 877 | G8: 20 | H8: 27 | I8: 22 | J8: 17 | K8: 30 | L8: 20 | N8: 100 | O8: 100 | P8: 55 | Q8: 55 | R8: 51 | S8: 100 | T8: 60 | U8: 100 | V8: 0 | X8: 68 | Y8: 50 | Z8: 70
A9: 3 | B9: 10047282935 | C9: BÁRTOVÁ, Gabriela | D9: TUFO PARDUS Prostějov z.s. | E9: 899 | F9: 818 | G9: 17 | H9: 22 | I9: 24 | J9: 30 | K9: 50 | L9: 30 | N9: 45 | O9: 32 | P9: 51 | Q9: 32 | R9: 75 | S9: 60 | T9: 75 | U9: 75 | V9: 75 | X9: 84 | Y9: 12 | Z9: 110
A10: 4 | B10: 10047208769 | C10: HEJHALOVÁ, Dagmar | D10: DUKLA PRAHA | E10: 873 | F10: 790 | G10: 30 | H10: 50 | I10: 37 | J10: 50 | K10: 24 | L10: 0 | N10: 48 | O10: 51 | P10: 75 | Q10: 35 | R10: 60 | S10: 51 | T10: 51 | U10: 51 | V10: 60 | X10: 60 | Y10: 50 | Z10: 90
A11: 5 | B11: 10047404082 | C11: PROŠKOVÁ, Tereza | D11: TJ STADION LOUNY | E11: 617 | F11: 617 | G11: 37 | H11: 16 | I11: 17 | J11: 21 | L11: 50 | N11: 75 | O11: 75 | P11: 40 | Q11: 60 | R11: 55 | V11: 42 | X11: 50 | Y11: 33 | Z11: 46
A12: 6 | B12: 10056227749 | C12: MIKŠANÍKOVÁ, Natálie | D12: ACK Stará Ves nad Ondřejnicí | E12: 628 | F12: 571 | G12: 19 | H12: 17 | I12: 21 | J12: 27 | K12: 37 | L12: 0 | N12: 36 | O12: 21 | P12: 48 | Q12: 38 | R12: 40 | S12: 48 | T12: 42 | U12: 45 | V12: 37 | X12: 32 | Y12: 40 | Z12: 80
A13: 7 | B13: 10047403981 | C13: PARMOVÁ, Barbora | D13: TJ STADION LOUNY | E13: 478 | F13: 478 | G13: 22 | I13: 7 | J13: 10 | L13: 27 | N13: 55 | O13: 45 | P13: 37 | Q13: 45 | R13: 48 | V13: 45 | X13: 54 | Y13: 33 | Z13: 50
A14: 8 | B14: 10047448643 | C14: RUNTOVÁ, Hanka | D14: TJ STADION LOUNY | E14: 527 | F14: 462 | G14: 16 | H14: 1 | I14: 11 | J14: 14 | K14: 27 | L14: 19 | N14: 38 | O14: 28 | P14: 36 | Q14: 48 | R14: 38 | S14: 42 | T14: 45 | U14: 48 | V14: 40 | X14: 29 | Y14: 8 | Z14: 39
A15: 9 | B15: 10047309914 | C15: NĚMCOVÁ, Barbora | D15: SPORTCOMPLEX BŘECLAV | E15: 485 | F15: 459 | G15: 14 | H15: 8 | I15: 13 | K15: 20 | L15: 0 | N15: 33 | O15: 26 | P15: 31 | Q15: 30 | S15: 55 | T15: 48 | U15: 55 | V15: 51 | X15: 35 | Y15: 24 | Z15: 42
A16: 10 | B16: 10047765309 | C16: HLADÍKOVÁ, Kateřina | D16: IVAR CS - AUTHOR TEAM | E16: 436 | F16: 436 | G16: 27 | H16: 20 | I16: 30 | L16: 22 | N16: 51 | O16: 40 | P16: 60 | Q16: 34 | V16: 28 | X16: 41 | Y16: 28 | Z16: 55
A17: 11 | B17: 10047405904 | C17: PETERKOVÁ, Sára Kateřina | D17: Roman Kreuziger Cycling Academy | E17: 370 | F17: 370 | G17: 18 | I17: 19 | J17: 20 | K17: 21 | L17: 0 | N17: 42 | P17: 38 | R17: 42 | U17: 35 | V17: 0 | X17: 44 | Y17: 16 | Z17: 75
A18: 12 | B18: 10047310318 | C18: POULOVÁ, Michaela | D18: SPORTCOMPLEX BŘECLAV | E18: 357 | F18: 357 | G18: 15 | H18: 9 | I18: 16 | J18: 22 | K18: 18 | L18: 0 | N18: 27 | P18: 32 | Q18: 26 | R18: 32 | T18: 35 | U18: 34 | V18: 30 | X18: 14 | Y18: 24 | Z18: 23
A19: 13 | B19: 10047767127 | C19: KOLÁŘOVÁ, Justýna | D19: TJ AŠ ML.BOLESLAV | E19: 324 | F19: 324 | G19: 21 | H19: 21 | I19: 18 | J19: 16 | L19: 14 | N19: 37 | O19: 9 | P19: 30 | Q19: 24 | R19: 31 | V19: 32 | X19: 13 | Y19: 20 | Z19: 38
A20: 14 | B20: 10047420149 | C20: BARTOŠOVÁ, Martina | D20: EXPRES CZ - TUFO TEAM KOLÍN | E20: 315 | F20: 315 | G20: 10 | J20: 13 | L20: 19 | N20: 40 | O20: 24 | Q20: 36 | R20: 34 | V20: 38 | X20: 38 | Y20: 20 | Z20: 43
A21: 15 | B21: 10047303143 | C21: SPĚŠNÁ, Simona | D21: MS BIKE ACADEMY RACING | E21: 313 | F21: 313 | H21: 37 | I21: 27 | J21: 24 | L21: 0 | O21: 60 | P21: 45 | Q21: 75 | R21: 45 | V21: 0 | Y21: 0
A22: 16 | B22: 10047317287 | C22: VINKLÁRKOVÁ, Marie | D22: MG Bike Team | E22: 282 | F22: 282 | J22: 15 | K22: 13 | L22: 16 | O22: 1 | Q22: 33 | R22: 30 | S22: 38 | U22: 42 | V22: 34 | X22: 26 | Y22: 0 | Z22: 34
A23: 17 | B23: 10047358515 | C23: DRBOHLAVOVÁ, Eliška | D23: KC KOOPERATIVA Jablonec nad Nisou, z.s. | E23: 269 | F23: 269 | I23: 3 | J23: 18 | L23: 27 | O23: 27 | P23: 28 | Q23: 27 | R23: 35 | V23: 36 | X23: 23 | Y23: 4 | Z23: 41
A24: 18 | B24: 10051855437 | C24: MACHANCOVÁ, Andrea | D24: TJ Sigma Hranice z.s. | E24: 262 | F24: 262 | H24: 13 | I24: 10 | K24: 19 | L24: 0 | P24: 22 | S24: 45 | T24: 37 | U24: 37 | V24: 0 | X24: 47 | Y24: 0 | Z24: 32
A25: 19 | B25: 10047465316 | C25: DRÁPELOVÁ, Magdalena | D25: MAPEI MERIDA KAŇKOVSKÝ | E25: 258 | F25: 258 | I25: 12 | K25: 16 | L25: 0 | N25: 25 | O25: 3 | P25: 23 | Q25: 22 | S25: 37 | T25: 36 | U25: 36 | V25: 0 | X25: 11 | Y25: 0 | Z25: 37
A26: 20 | B26: 10077159945 | C26: MARKOVÁ, Ema | D26: DUKLA PRAHA | E26: 224 | F26: 224 | G26: 8 | H26: 3 | J26: 7 | K26: 11 | L26: 0 | N26: 31 | O26: 12 | R26: 26 | T26: 31 | U26: 33 | V26: 29 | X26: 5 | Y26: 4 | Z26: 24
A27: 21 | B27: 10046446412 | C27: MACÁNOVÁ, Markéta | D27: Roman Kreuziger Cycling Academy | E27: 214 | F27: 214 | G27: 13 | H27: 2 | J27: 9 | K27: 17 | L27: 0 | N27: 29 | O27: 14 | R27: 28 | U27: 38 | V27: 0 | X27: 20 | Y27: 16 | Z27: 28
A28: 22 | B28: 10052349769 | C28: HOLÁŠKOVÁ, Justýna | D28: TEAM FORMAN CINELLI | E28: 211 | F28: 211 | H28: 1 | I28: 15 | K28: 14 | L28: 0 | O28: 1 | P28: 24 | Q28: 15 | S28: 33 | T28: 32 | U28: 32 | V28: 0 | X28: 9 | Y28: 8 | Z28: 27
A29: 23 | B29: 10047313247 | C29: FOLTÝNOVÁ, Adéla | D29: MS BIKE ACADEMY RACING | E29: 205 | F29: 205 | H29: 19 | I29: 14 | J29: 19 | L29: 0 | O29: 37 | P29: 42 | Q29: 37 | R29: 37 | V29: 0 | Y29: 0
A30: 24 | B30: 10047279804 | C30: DOSTÁLOVÁ, Kateřina | D30: Dakom Pharma Kyjov | E30: 193 | F30: 193 | G30: 12 | H30: 10 | I30: 9 | J30: 12 | L30: 13 | N30: 28 | O30: 7 | R30: 29 | V30: 31 | X30: 12 | Y30: 0 | Z30: 30
A31: 25 | B31: 10047257370 | C31: BEDRNÍKOVÁ, Karolína | D31: ECXPRES CZ - TUFO Team Kolín | E31: 190 | F31: 190 | H31: 24 | L31: 0 | O31: 42 | Q31: 51 | V31: 0 | Y31: 28 | Z31: 45
A32: 26 | B32: 10079801981 | C32: JELÍNKOVÁ, Natálie | D32: Drahanský Sport Tam | E32: 186 | F32: 186 | L32: 0 | O32: 6 | P32: 29 | Q32: 40 | S32: 34 | T32: 34 | V32: 0 | X32: 17 | Y32: 0 | Z32: 26
A33: 27 | B33: 10079506739 | C33: KRUTÍLKOVÁ, Kateřina | D33: TEAM FORMAN CINELLI | E33: 183 | F33: 183 | I33: 8 | K33: 15 | L33: 0 | O33: 2 | Q33: 25 | S33: 35 | T33: 33 | U33: 40 | V33: 0 | Y33: 0 | Z33: 25
A34: 28 | B34: 10047304557 | C34: VIKTOROVÁ, Nela | D34: LYKO KLUB PRACHATICE z.s. | E34: 181 | F34: 181 | L34: 21 | V34: 100 | Z34: 60
A35: 29 | B35: 10084925096 | C35: HŘEBAČKOVÁ, Michaela | D35: SPORTCOMPLEX BŘECLAV | E35: 171 | F35: 171 | I35: 1 | J35: 8 | K35: 12 | L35: 0 | P35: 21 | Q35: 14 | R35: 27 | T35: 30 | U35: 31 | V35: 0 | X35: 6 | Y35: 0 | Z35: 21
A36: 30 | B36: 10047287884 | C36: STAŇKOVÁ, Klára | D36: CYKLO MIKULÁŠEK ZNOJMO o.s. | E36: 165 | F36: 165 | G36: 11 | H36: 6 | I36: 6 | L36: 0 | N36: 34 | O36: 30 | P36: 33 | Q36: 23 | V36: 0 | Y36: 0 | Z36: 22
A37: 31 | B37: 10093317317 | C37: KŘENKOVÁ, Nikola | D37: TUFO PARDUS Prostějov z.s. | E37: 162 | F37: 162 | G37: 7 | I37: 1 | L37: 0 | N37: 35 | O37: 18 | P37: 25 | Q37: 21 | V37: 0 | X37: 10 | Y37: 12 | Z37: 33
A38: 32 | B38: 10047324058 | C38: HOJKOVÁ, Štěpánka | D38: Jaroslav Kulhavý Cycling Team | E38: 133 | F38: 133 | H38: 12 | L38: 37 | O38: 36 | V38: 48 | Y38: 0
A39: 33 | B39: 10047356087 | C39: HENDRYCHOVÁ, Lucie | D39: Bike Freaks Holice | E39: =SUM(G39:AK39) -> 129 | F39: 129 | I39: 20 | L39: 0 | N39: 32 | P39: 35 | Q39: 42 | V39: 0 | Y39: 0
A40: 34 | B40: 10047782887 | C40: ZEMANOVÁ, Kristýna | D40: TJ AŠ ML.BOLESLAV | E40: 103 | F40: 103 | G40: 24 | L40: 24 | V40: 55 | Y40: 0
A41: 35 | B41: 10047412065 | C41: PLESKAČOVÁ, Natálie | D41: EXPRES CZ - TUFO TEAM KOLÍN | E41: 94 | F41: 94 | L41: 0 | O41: 29 | V41: 0 | Y41: 0 | Z41: 65
A42: 36 | B42: 10047292332 | C42: DOSTÁLOVÁ, Lucie | D42: LYKO KLUB PRACHATICE z.s. | E42: 94 | F42: 94 | L42: 15 | V42: 35 | Y42: 0 | Z42: 44
A43: 37 | B43: 10084771819 | C43: JEŘÁBKOVÁ, Barbora | D43: IVAR CS - AUTHOR TEAM | E43: 90 | F43: 90 | I43: 2 | L43: 0 | O43: 13 | P43: 26 | Q43: 18 | V43: 0 | Y43: 0 | Z43: 31
A44: 38 | B44: 10047276669 | C44: SMUTNÁ, Anna | D44: Drahanský Sport Tam | E44: 86 | F44: 86 | L44: 0 | O44: 22 | P44: 27 | V44: 0 | X44: 8 | Y44: 0 | Z44: 29
A45: 39 | B45: 10047337394 | C45: MITRYCHOVÁ, Michaela | D45: kola-bbm.cz | E45: 85 | F45: 85 | H45: 5 | J45: 11 | L45: 0 | O45: 33 | R45: 36 | V45: 0 | Y45: 0
A46: 40 | B46: 10083491217 | C46: MASLEKOVOVÁ, Daniela | D46: TJ STADION LOUNY | E46: 77 | F46: 77 | G46: 9 | H46: 1 | I46: 5 | L46: 0 | N46: 30 | O46: 15 | Q46: 17 | V46: 0 | Y46: 0
A47: 41 | B47: 10047257471 | C47: NOVOTNÁ, Aneta | D47: ADASTRA Cycling Team | E47: 66 | F47: 66 | H47: 18 | L47: 0 | O47: 48 | V47: 0 | Y47: 0
A48: 42 | B48: 10053205793 | C48: SROGOŇOVÁ Alena | D48: PROFI SPORT CHEB | E48: 52 | F48: 52 | L48: 0 | Q48: 16 | V48: 0 | Y48: 0 | Z48: 36
A49: 43 | B49: 10047284450 | C49: SOBKOVÁ, Sabina | D49: VRV TEAM | E49: 45 | F49: 45 | L49: 0 | O49: 5 | V49: 0 | Y49: 0 | Z49: 40
A50: 44 | B50: 10054141542 | C50: KNIHOVÁ, Kateřina | D50: ECXPRES CZ - TUFO Team Kolín | E50: 39 | F50: 39 | H50: 14 | L50: 0 | O50: 25 | V50: 0 | Y50: 0
A51: 45 | B51: 10047392968 | C51: SRNSKÁ, Patricie | D51: CYKLO - SKI klubPolička | E51: 35 | F51: 35 | H51: 1 | L51: 0 | O51: 34 | V51: 0 | Y51: 0
A52: 46 | B52: 10059936886 | C52: ŠIMOŇUKOVÁ, Natálie | D52: Cykloteam MXM Hulín | E52: 35 | F52: 35 | L52: 0 | V52: 0 | Z52: 35
A53: 47 | B53: 10047368922 | C53: ŠINDELÁŘOVÁ, Hana | D53: Jaroslav Kulhavy Cycling Team | E53: 33 | F53: 33 | L53: 0 | R53: 33 | V53: 0
A54: 48 | B54: xMM2007 | C54: Markéta MACÁNOVÁ | D54: Roman Kreuziger Cycling Academy | E54: 33 | F54: 33 | L54: 0 | V54: 33 | Y54: 0
A55: 49 | B55: 10092995395 | C55: URBANOVÁ, Michaela | D55: FORCE KCK ZLÍN | E55: 30 | F55: 30 | L55: 0 | N55: 26 | O55: 4 | V55: 0 | Y55: 0
A56: 50 | B56: 10096104146 | C56: LUZAROVA Tereza | D56: FORCE TEAM JESENIK | E56: 27 | F56: 27 | L56: 0 | V56: 0 | X56: 7 | Y56: 0 | Z56: 20
A57: 51 | B57: 10047374174 | C57: DUCHKOVÁ, Tereza | D57: KC KOOPERATIVA Jablonec nad Nisou, z.s. | E57: 24 | F57: 24 | L57: 0 | N57: 24 | V57: 0 | Y57: 0
A58: 52 | B58: 10077193792 | C58: BINDEROVÁ, Petra | D58: HEAD Pro Team Opava | E58: 17 | F58: 17 | L58: 0 | O58: 17 | V58: 0 | Y58: 0
A59: 53 | B59: 10047403274 | C59: ORÁLKOVÁ, Kamila | D59: SKP Duha Lanškroun | E59: 5 | F59: 5 | L59: 0 | O59: 5 | V59: 0 | Y59: 0
A60: 54 | B60: 10047425506 | C60: PETRŽÍLKOVÁ, Simona | D60: DUKLA PRAHA | E60: 0 | F60: 0 | L60: 0 | V60: 0 | Y60: 0

Sheet Žst
A1: Průběžné pořadí ČP mládeže a žen 2019
A3: ŽÁCI STARŠÍ
A4: Datum 6. 7. 2019 | B4: 2019-09-09 | C4: 17:59:17 | D4: Last RECALCULATION
A6: Pořadí | B6: UCI ID | C6: Jméno a příjmení | D6: Oddíl | E6: Body CLK | F6: Body TOP | G6: Soběslav krit | H6: Kyjov Krit. | I6: Olomouc | J6: Plzeň Krit | K6: Ostrava krit. | L6: Jablonec n. N. | M6: Terezín | N6: Zbraslav Sil. | O6: Kyjov Sil. | P6: Olomouc | Q6: Kroměříž | R6: Plzeň | S6: Bílovec | T6: Nový Jičín | U6: Ostrava | V6: Jablonec n. N. | W6: Židovice | X6: MČR ČJ | Y6: MČR ČD | Z6: MČR | AA6: MZM
A7: 1 | B7: 10047280309 | C7: KOBR, Richard | D7: TJ LOKOMOTIVA BEROUN | E7: =SUM(G7:AM7) -> 1551 | F7: 1406 | G7: 50 | H7: 50 | I7: 50 | J7: 30 | K7: 30 | L7: 37 | N7: 60 | O7: 100 | P7: 55 | Q7: 100 | R7: 75 | S7: 60 | T7: 60 | U7: 100 | V7: 60 | X7: 60 | Y7: 24 | Z7: 150 | AA7: 400
A8: 2 | B8: 10047315469 | C8: ŠILHAVÝ, Ondřej | D8: KOVO PRAHA | E8: 1362 | F8: 1287 | H8: 30 | I8: 22 | J8: 50 | K8: 50 | L8: 0 | N8: 75 | O8: 75 | P8: 100 | Q8: 75 | R8: 100 | T8: 100 | U8: 75 | V8: 75 | X8: 110 | Y8: 50 | Z8: 75 | AA8: 300
A9: 3 | B9: 10047280410 | C9: KOBR, Robert | D9: TJ LOKOMOTIVA BEROUN | E9: 1057 | F9: 941 | G9: 30 | H9: 20 | I9: 37 | J9: 24 | K9: 37 | L9: 30 | N9: 51 | O9: 55 | P9: 60 | Q9: 51 | R9: 45 | S9: 100 | T9: 75 | U9: 55 | V9: 55 | X9: 41 | Y9: 24 | Z9: 90 | AA9: 177
A10: 4 | B10: 10059129059 | C10: ELBADRI, Jakub | D10: IVAR CS - AUTHOR TEAM | E10: 906 | F10: 906 | H10: 37 | I10: 24 | L10: 50 | N10: 55 | O10: 60 | P10: 75 | Q10: 55 | V10: 51 | X10: 84 | Y10: 33 | Z10: 110 | AA10: 272
A11: 5 | B11: 10047108941 | C11: PODAŘIL, Jan | D11: DUKLA PRAHA | E11: 737 | F11: 737 | G11: 37 | H11: 24 | I11: 19 | J11: 27 | L11: 0 | N11: 100 | O11: 51 | P11: 45 | Q11: 48 | R11: 60 | S11: 37 | T11: 45 | V11: 0 | X11: 44 | Y11: 20 | Z11: 80 | AA11: 100
A12: 6 | B12: 10081977411 | C12: PÁTÍK, Stanislav | D12: TUFO PARDUS Prostějov z.s. | E12: 692 | F12: 692 | G12: 24 | H12: 13 | J12: 1 | K12: 27 | L12: 24 | N12: 48 | O12: 38 | Q12: 60 | R12: 38 | T12: 55 | U12: 60 | V12: 100 | X12: 68 | Y12: 28 | Z12: 60 | AA12: 48
A13: 7 | B13: 10053209130 | C13: NOVÁK, Filip | D13: PROFI SPORT CHEB | E13: 462 | F13: 440 | G13: 11 | H13: 3 | I13: 12 | J13: 17 | K13: 24 | L13: 7 | N13: 19 | O13: 26 | P13: 40 | Q13: 40 | R13: 55 | T13: 40 | U13: 30 | V13: 48 | Z13: 50 | AA13: 40
A14: 8 | B14: 10047349623 | C14: KOBLÍŽEK, Vojtěch | D14: TUFO PARDUS Prostějov z.s. | E14: 435 | F14: 433 | G14: 21 | H14: 21 | I14: 15 | J14: 37 | K14: 17 | L14: 2 | N14: 30 | O14: 25 | P14: 48 | Q14: 36 | R14: 37 | U14: 51 | V14: 38 | X14: 13 | Y14: 28 | Z14: 16
A15: 9 | B15: 10012987573 | C15: MUROŇ, Matyáš | D15: TJ FAVORIT BRNO | E15: 407 | F15: 407 | G15: 20 | H15: 5 | I15: 6 | J15: 22 | L15: 9 | N15: 42 | O15: 28 | P15: 23 | Q15: 26 | R15: 16 | S15: 42 | V15: 20 | X15: 38 | Y15: 40 | Z15: 70
A16: 10 | B16: 10046656576 | C16: KARÁSEK, David | D16: TJ FAVORIT BRNO | E16: 394 | F16: 371 | G16: 16 | H16: 8 | I16: 10 | K16: 4 | L16: 14 | N16: 24 | O16: 9 | P16: 24 | Q16: 22 | R16: 14 | S16: 36 | T16: 32 | U16: 28 | V16: 24 | X16: 50 | Y16: 40 | Z16: 39
A17: 11 | B17: 10047234536 | C17: KOHOUT, Jaromír | D17: Roman Kreuziger Cycling Academy | E17: 347 | F17: 347 | G17: 22 | H17: 12 | I17: 16 | J17: 19 | L17: 27 | N17: 31 | O17: 19 | P17: 34 | R17: 51 | V17: 37 | X17: 35 | Z17: 44
A18: 12 | B18: 10047271518 | C18: NOVOTNÝ, Ondřej | D18: DUKLA PRAHA | E18: 336 | F18: 336 | G18: 27 | H18: 27 | I18: 17 | L18: 0 | N18: 40 | O18: 42 | P18: 38 | Q18: 35 | S18: 55 | V18: 0 | X18: 11 | Y18: 8 | Z18: 36
A19: 13 | B19: 10047253027 | C19: ŠILHAVÝ, Daniel | D19: KOVO PRAHA | E19: 321 | F19: 321 | H19: 19 | I19: 27 | J19: 18 | L19: 0 | N19: 37 | O19: 45 | P19: 36 | Q19: 4 | R19: 40 | V19: 0 | X19: 14 | Y19: 50 | Z19: 31
A20: 14 | B20: 10053651286 | C20: OPLUŠTIL, Ivo | D20: TJ FAVORIT BRNO | E20: 319 | F20: 309 | G20: 12 | I20: 14 | J20: 11 | K20: 16 | L20: 1 | N20: 10 | P20: 30 | Q20: 23 | R20: 23 | S20: 21 | T20: 27 | U20: 31 | V20: 45 | Z20: 55
A21: 15 | B21: 10047818354 | C21: JEŽEK, Václav | D21: IVAR CS - AUTHOR TEAM | E21: 307 | F21: 307 | H21: 17 | L21: 0 | N21: 38 | O21: 37 | Q21: 33 | V21: 42 | X21: 26 | Y21: 33 | Z21: 43 | AA21: 38
A22: 16 | B22: 10047452784 | C22: PŘIDAL, Tobiáš | D22: MAPEI MERIDA KAŇKOVSKÝ | E22: 306 | F22: 300 | G22: 13 | I22: 13 | K22: 19 | L22: 5 | N22: 23 | O22: 30 | P22: 19 | Q22: 8 | S22: 48 | T22: 30 | U22: 34 | V22: 6 | X22: 17 | Y22: 16 | Z22: 25
A23: 17 | B23: 10070221819 | C23: FÜRBACH, Miroslav | D23: PROFI SPORT CHEB | E23: 300 | F23: 299 | G23: 10 | H23: 1 | I23: 11 | J23: 20 | K23: 21 | L23: 0 | N23: 6 | O23: 1 | P23: 28 | Q23: 28 | R23: 32 | S23: 29 | T23: 29 | U23: 42 | V23: 0 | Y23: 12 | Z23: 30
A24: 18 | B24: 10074978152 | C24: BARBOŘÍK, Matěj | D24: MG Bike Team | E24: 282 | F24: 282 | H24: 7 | I24: 7 | K24: 12 | L24: 20 | N24: 2 | P24: 26 | R24: 30 | S24: 40 | T24: 37 | U24: 40 | V24: 22 | X24: 5 | Z24: 34
A25: 19 | B25: 10079785009 | C25: HORYNA, Vlastimil | D25: LOKOMOTIVA NYMBURK | E25: 258 | F25: 258 | I25: 18 | J25: 21 | K25: 22 | L25: 0 | N25: 35 | O25: 16 | P25: 8 | R25: 48 | U25: 48 | V25: 36 | X25: 6
A26: 20 | B26: 10047336081 | C26: BERNÁT, Adam | D26: DUKLA PRAHA | E26: 255 | F26: 255 | H26: 15 | I26: 2 | L26: 0 | N26: 25 | O26: 35 | P26: 17 | Q26: 10 | S26: 51 | V26: 0 | X26: 47 | Y26: 20 | Z26: 33
A27: 21 | B27: 10047422876 | C27: BÁRTA, Martin | D27: KOVO PRAHA | E27: 253 | F27: 253 | H27: 22 | I27: 21 | L27: 19 | N27: 34 | O27: 36 | P27: 42 | Q27: 45 | V27: 34
A28: 22 | B28: 10047368518 | C28: MOROŇ, Daniel | D28: HEAD PRO TEAM OPAVA | E28: 238 | F28: 238 | K28: 15 | L28: 0 | N28: 27 | O28: 1 | P28: 22 | Q28: 24 | S28: 42 | T28: 31 | U28: 45 | V28: 0 | X28: 12 | Z28: 19
A29: 23 | B29: 10094955405 | C29: BITTNER Jan | D29: MAPEI MERIDA KAŇKOVSKÝ | E29: 222 | F29: 222 | K29: 20 | L29: 6 | P29: 14 | Q29: 2 | R29: 26 | T29: 22 | U29: 36 | V29: 25 | X29: 29 | Y29: 16 | Z29: 26
A30: 24 | B30: 10047382662 | C30: BRADÁČ, Adam | D30: DUKLA PRAHA | E30: 211 | F30: 211 | H30: 10 | I30: 8 | L30: 0 | N30: 45 | O30: 40 | P30: 35 | Q30: 38 | V30: 0 | X30: 10 | Y30: 8 | Z30: 17
A31: 25 | B31: 10047329920 | C31: KRÁL, Kryštof | D31: ADASTRA Cycling eam | E31: 208 | F31: 208 | K31: 18 | L31: 0 | O31: 29 | S31: 35 | T31: 23 | U31: 38 | V31: 0 | Z31: 65
A32: 26 | B32: 10053648963 | C32: VAVRO, Kristián | D32: TJ FAVORIT BRNO | E32: 201 | F32: 201 | G32: 5 | I32: 3 | K32: 9 | L32: 15 | N32: 32 | P32: 25 | Q32: 14 | T32: 38 | U32: 27 | V32: 33
A33: 27 | B33: 10093204654 | C33: KREŠÁK, Kryštof | D33: CYCLING ACADEMY TÁBOR | E33: 196 | F33: 196 | G33: 17 | H33: 1 | I33: 20 | L33: 0 | N33: 20 | O33: 2 | P33: 37 | V33: 0 | X33: 54 | Y33: 4 | Z33: 41
A34: 28 | B34: 10092872935 | C34: SMITH, Michael Filip | D34: TJ FAVORIT BRNO | E34: 185 | F34: 185 | G34: 15 | I34: 1 | J34: 1 | K34: 14 | L34: 22 | N34: 28 | Q34: 16 | R34: 15 | T34: 25 | U34: 35 | V34: 13
A35: 29 | B35: 10059526961 | C35: POLÁK, Matyáš | D35: KC KOOPERATIVA Jablonec nad Nisou, z.s. | E35: 178 | F35: 178 | H35: 4 | I35: 1 | J35: 5 | L35: 10 | N35: 4 | O35: 27 | P35: 9 | Q35: 19 | R35: 25 | V35: 30 | X35: 23 | Z35: 21
A36: 30 | B36: 10047334768 | C36: KUBA, Jakub | D36: TJ AŠ ML.BOLESLAV | E36: 150 | F36: 150 | H36: 9 | I36: 5 | J36: 12 | L36: 1 | O36: 17 | P36: 27 | R36: 33 | V36: 23 | X36: 5 | Z36: 18
A37: 31 | B37: 10013440948 | C37: KRÝSL, Lukáš | D37: MS BIKE ACADEMY RACING | E37: 149 | F37: 149 | J37: 10 | L37: 0 | O37: 27 | Q37: 32 | R37: 42 | S37: 38 | V37: 0
A38: 32 | B38: 10047406005 | C38: PETERKA, David | D38: SK PETŘÍN PLZEŇ | E38: 147 | F38: 147 | G38: 4 | I38: 4 | J38: 13 | K38: 5 | L38: 0 | P38: 32 | R38: 12 | U38: 23 | V38: 0 | X38: 9 | Z38: 45
A39: 33 | B39: 10047418533 | C39: KROC, Vladimír | D39: AC SPARTA PRAHA | E39: =SUM(G39:AM39) -> 138 | F39: 138 | J39: 6 | L39: 19 | N39: 33 | R39: 18 | V39: 16 | Z39: 46
A40: 34 | B40: 10093205260 | C40: JOHÁNEK, Dalibor | D40: CYKLOSPORT-PITSTOP.CZ | E40: 136 | F40: 136 | H40: 2 | J40: 1 | L40: 21 | O40: 13 | P40: 18 | R40: 19 | V40: 35 | Z40: 27
A41: 35 | B41: 10080966688 | C41: NOVÁK, Tomáš | D41: FORCE TEAM JESENÍK | E41: 134 | F41: 134 | G41: 1 | K41: 2 | L41: 0 | N41: 1 | O41: 10 | P41: 10 | Q41: 9 | S41: 30 | T41: 28 | U41: 33 | V41: 0 | Z41: 10
A42: 36 | B42: 10004772683 | C42: PEŠEK, Adam | D42: SK PETŘÍN PLZEŇ | E42: 131 | F42: 131 | G42: 2 | J42: 15 | L42: 1 | N42: 13 | P42: 13 | R42: 17 | S42: 17 | V42: 17 | X42: 7 | Z42: 29
A43: 37 | B43: 10059729752 | C43: HRDLIČKA, Adam | D43: MAPEI MERIDA KAŇKOVSKÝ | E43: 125 | F43: 125 | J43: 2 | L43: 8 | R43: 27 | S43: 32 | U43: 37 | V43: 19
A44: 38 | B44: 10080738235 | C44: ZAPLETAL, Jan | D44: MAPEI MERIDA KAŇKOVSKÝ | E44: 124 | F44: 124 | K44: 11 | L44: 0 | R44: 2 | S44: 24 | T44: 20 | U44: 32 | V44: 0 | Z44: 35
A45: 39 | B45: 10047318402 | C45: SAMEC, Filip | D45: IVAR CS - AUTHOR TEAM | E45: 123 | F45: 123 | I45: 1 | L45: 1 | N45: 22 | P45: 33 | R45: 34 | V45: 32
A46: 40 | B46: 10046792073 | C46: ŠIMEČEK, David | D46: CYCLING ACADEMY TÁBOR | E46: 114 | F46: 114 | G46: 19 | H46: 18 | L46: 0 | N46: 29 | O46: 20 | R46: 28 | V46: 0
A47: 41 | B47: 10082965292 | C47: KOVAČIČIN, Šimon | D47: MAPEI MERIDA KAŇKOVSKÝ | E47: 113 | F47: 113 | G47: 14 | H47: 1 | I47: 9 | J47: 3 | L47: 0 | N47: 9 | O47: 6 | P47: 15 | R47: 31 | S47: 25 | V47: 0
A48: 42 | B48: 10084836988 | C48: KOTSCHY, Vít | D48: SK PETŘÍN PLZEŇ | E48: 112 | F48: 112 | K48: 10 | L48: 16 | N48: 17 | R48: 10 | U48: 29 | V48: 18 | Z48: 12
A49: 43 | B49: 10080411566 | C49: DUBEC, Štěpán | D49: FORCE TEAM JESENÍK | E49: 111 | F49: 111 | I49: 1 | K49: 13 | L49: 0 | P49: 12 | T49: 24 | U49: 26 | V49: 0 | X49: 20 | Z49: 15
A50: 44 | B50: 10047374982 | C50: MIŇOVSKÝ, Prokop | D50: IVAR CS - AUTHOR TEAM | E50: 105 | F50: 105 | L50: 11 | N50: 26 | O50: 23 | P50: 1 | V50: 7 | X50: 5 | Z50: 32
A51: 45 | B51: 10047402870 | C51: ZAHÁLKA, Štěpán | D51: CK Slavoj Terezín - Cyklo City | E51: 104 | F51: 104 | G51: 9 | L51: 0 | N51: 5 | O51: 1 | R51: 22 | V51: 0 | X51: 32 | Y51: 12 | Z51: 23
A52: 46 | B52: 10046576552 | C52: ŠAFRÁNEK, Ondřej | D52: AC SPARTA PRAHA | E52: 97 | F52: 97 | J52: 14 | L52: 0 | N52: 14 | R52: 3 | V52: 29 | Z52: 37
A53: 47 | B53: 10047380743 | C53: BITTMAN, Adam | D53: KOVO PRAHA | E53: 96 | F53: 96 | G53: 18 | J53: 7 | L53: 0 | N53: 36 | R53: 35 | V53: 0
A54: 48 | B54: 10081186960 | C54: VLK, Josef | D54: MS BIKE ACADEMY RACING | E54: 93 | F54: 93 | L54: 0 | N54: 8 | O54: 4 | Q54: 29 | R54: 21 | S54: 31 | V54: 0
A55: 49 | B55: 10047423886 | C55: FALTÝNEK, Jan | D55: Cyklo Faltýnek | E55: 93 | F55: 93 | H55: 1 | L55: 0 | N55: 18 | Q55: 31 | S55: 22 | T55: 21 | V55: 0
A56: 50 | B56: 10047422472 | C56: DVOŘÁČEK, Tobias | D56: KOVO PRAHA | E56: 90 | F56: 90 | G56: 8 | J56: 8 | L56: 0 | N56: 3 | P56: 11 | Q56: 1 | R56: 29 | U56: 19 | V56: 0 | Z56: 11
A57: 51 | B57: 10082332974 | C57: KRAVÁK, Vojtěch | D57: MG BIKE TEAM | E57: 88 | F57: 88 | L57: 0 | R57: 4 | S57: 30 | T57: 36 | V57: 8 | Z57: 10
A58: 52 | B58: 10047438539 | C58: ZVĚDĚLÍK, Ondřej | D58: ACS DRAK VRBNO | E58: 86 | F58: 86 | K58: 1 | L58: 0 | N58: 1 | P58: 16 | Q58: 12 | S58: 16 | U58: 16 | V58: 0 | Z58: 24
A59: 53 | B59: 10078831173 | C59: SOUKUP, Vojtěch | D59: TUFO PARDUS Prostějov z.s. | E59: 85 | F59: 85 | K59: 1 | L59: 0 | N59: 1 | P59: 1 | R59: 20 | T59: 16 | U59: 25 | V59: 11 | Z59: 10
A60: 54 | B60: 10009358056 | C60: RUBEŠ, Daniel | D60: EXPRES CZ - TUFO TEAM KOLÍN | E60: 80 | F60: 80 | L60: 13 | Q60: 27 | V60: 40
A61: 55 | B61: 10047374073 | C61: HOJKA, František | D61: Jaroslav Kulhavy Cycling Team | E61: 78 | F61: 78 | L61: 27 | N61: 12 | O61: 24 | V61: 15
A62: 56 | B62: 10047373972 | C62: ŠUMPÍK, Pavel | D62: Bike Freaks Holice | E62: 75 | F62: 75 | L62: 0 | N62: 21 | P62: 29 | Q62: 25 | V62: 0
A63: 57 | B63: 10004746819 | C63: JEŽEK, David | D63: Dakom Pharma Kyjov | E63: 75 | F63: 75 | G63: 7 | K63: 6 | L63: 0 | N63: 11 | P63: 4 | Q63: 3 | R63: 11 | U63: 18 | V63: 0 | X63: 5 | Z63: 10
A64: 58 | B64: 10079631223 | C64: ČERVENÝ, Tomáš | D64: TJ FAVORIT BRNO | E64: 73 | F64: 73 | K64: 8 | L64: 0 | Q64: 5 | S64: 20 | T64: 19 | U64: 21 | V64: 0
A65: 59 | B65: 10054142653 | C65: HELLMICH, Jonáš | D65: KC KOOPERATIVA Jablonec nad Nisou, z.s. | E65: 72 | F65: 72 | L65: 4 | N65: 16 | O65: 8 | Q65: 18 | V65: 26
A66: 60 | C66: SYRKO, Robin | D66: ACK Stará Ves nad Ondřejnicí | E66: 68 | F66: 68 | K66: 1 | L66: 0 | S66: 28 | T66: 17 | U66: 22 | V66: 0
A67: 61 | B67: 10046565842 | C67: ZEDNÍK, Jiří | D67: TJ STADION LOUNY | E67: 66 | F67: 66 | G67: 6 | J67: 4 | L67: 0 | N67: 7 | P67: 5 | Q67: 6 | R67: 1 | V67: 1 | X67: 8 | Z67: 28
A68: 62 | B68: 10046534318 | C68: ŽENÍŠEK, Martin | D68: LYKO KLUB PRACHATICE z.s. | E68: 66 | F68: 66 | L68: 0 | R68: 36 | V68: 10 | Z68: 20
A69: 63 | B69: 10096726764 | C69: KUDWEIS,Vít | D69: CK Příbram - Fany GASTRO | E69: 66 | F69: 66 | K69: 3 | L69: 3 | P69: 2 | R69: 13 | U69: 24 | V69: 21
A70: 64 | B70: 10047047610 | C70: HANZELKA, Lukáš | D70: MG Bike Team | E70: 64 | F70: 64 | L70: 0 | Q70: 17 | S70: 15 | T70: 15 | U70: 15 | V70: 2
A71: 65 | B71: 10047422977 | C71: KRAUS, Tomáš | D71: CYCLING ACADEMY TÁBOR | E71: 54 | F71: 54 | L71: 0 | O71: 12 | V71: 0 | Y71: 4 | Z71: 38
A72: 66 | B72: 10028113109 | C72: VAŠUT David | D72: BIKE PRO RACING | E72: 47 | F72: 47 | L72: 0 | Q72: 7 | V72: 0 | Z72: 40
A73: 67 | B73: 10047373467 | C73: ŠTIBINGR, Martin | D73: KOVO PRAHA | E73: 44 | F73: 44 | G73: 1 | K73: 7 | L73: 0 | R73: 5 | T73: 14 | U73: 17 | V73: 0
A74: 68 | B74: 10047410651 | C74: DOBRÝ, Lukáš | D74: CK LOKO Rakovník | F74: 43 | L74: 12 | V74: 31
A75: 69 | B75: 10047401153 | C75: URBAN, Miroslav | D75: VRV TEAM | E75: =SUM(G75:AM75) -> 42 | F75: 42 | L75: 0 | V75: 0 | Z75: 42
A76: 70 | C76: JANÍK, David | D76: KOVO PRAHA | E76: 37 | F76: 37 | L76: 0 | P76: 6 | R76: 9 | V76: 0 | Z76: 22
A77: 71 | B77: 10068131972 | C77: Matěj PEKAŘ | D77: IVAR CS - AUTHOR TEAM | E77: 28 | F77: 28 | L77: 0 | V77: 28
A78: 72 | C78: VAVRO, Kristián | D78: TJ FAVORIT BRNO | E78: 26 | F78: 26 | L78: 0 | S78: 26 | V78: 0
A79: 73 | C79: OSIČKA, Šimon | D79: SPORTCOMPLEX BŘECLAV | E79: 23 | F79: 23 | L79: 0 | S79: 13 | T79: 10 | V79: 0
A80: 74 | B80: 10052350173 | C80: KANÓCZ, Martin | D80: TEAM FORMAN CINELLI | E80: 23 | F80: 23 | L80: 0 | T80: 11 | U80: 12 | V80: 0
A81: 75 | B81: 10093204755 | C81: MORÁVEK, Jan | D81: TJ FAVORIT BRNO | E81: 20 | F81: 20 | L81: 0 | U81: 20 | V81: 0
A82: 76 | B82: 10093080271 | C82: HYNEČEK, Jan | D82: TUFO CZ Otrokovice | E82: 19 | F82: 19 | L82: 0 | O82: 1 | P82: 3 | Q82: 15 | V82: 0
A83: 77 | C83: MARTINÁSEK, Matěj | D83: HEAD PRO TEAM OPAVA | E83: 19 | F83: 19 | L83: 0 | S83: 19 | V83: 0
A84: 78 | B84: 10066160448 | C84: Adam STREJČEK | D84: RAJEC 100% TREK | E84: 19 | F84: 19 | L84: 0 | R84: 7 | V84: 12
A85: 79 | C85: TALA, Erik | D85: MG Bike Team | E85: 18 | F85: 18 | L85: 0 | S85: 18 | V85: 0
A86: 80 | B86: 10093194651 | C86: ŘETICKÝ, Tomáš | D86: Vysočina Cycling | E86: 15 | F86: 15 | L86: 0 | N86: 15 | V86: 0
A87: 81 | B87: 10047394483 | C87: VACEK, Bertil | D87: CK Příbram - Fany GASTRO | E87: 15 | F87: 15 | L87: 0 | R87: 6 | V87: 9
A88: 82 | B88: 10047406510 | C88: SVITÁK, Jakub | D88: BIKE PRO RACING | E88: 14 | F88: 14 | L88: 0 | V88: 0 | Z88: 14
A89: 83 | C89: LIGOCKI, Darek | D89: CK ORLÍK ORLOVÁ | E89: 14 | F89: 14 | L89: 0 | U89: 14 | V89: 0
A90: 84 | C90: SVĚTLÍK, Adam | D90: BIKE PRO RACING | E90: 13 | F90: 13 | L90: 0 | V90: 0 | Z90: 13
A91: 85 | C91: VLK, Jáchym | D91: TJ FAVORIT BRNO | E91: 13 | F91: 13 | L91: 0 | U91: 13 | V91: 0
A92: 86 | C92: RUMPLÍK, Jakub | D92: TJ FAVORIT BRNO | E92: 11 | F92: 11 | L92: 0 | U92: 11 | V92: 0
A93: 87 | B93: 10053950673 | C93: JEŽEK Vojtěch | D93: MS BIKE ACADEMY RACING | E93: 10 | F93: 10 | J93: 9 | L93: 0 | Q93: 1 | V93: 0
A94: 88 | B94: 10059529082 | C94: URBÁNEK, Tomáš | D94: CYKLOTEAM OSTROV | E94: 9 | F94: 9 | J94: 1 | L94: 0 | R94: 8 | V94: 0
A95: 89 | B95: 10082602352 | C95: VLČEK, Miroslav | D95: SK PETŘÍN PLZEŇ | E95: 6 | F95: 6 | G95: 3 | L95: 0 | V95: 3
A96: 90 | B96: 10093188688 | C96: WALDHAUSER, Vít | D96: ČEZ Cyklo Team Tábor | E96: 6 | F96: 6 | G96: 1 | L96: 0 | V96: 5
A97: 91 | B97: 10054141239 | C97: KNIHA, Petr | D97: EXPRES CZ - TUFO TEAM KOLÍN | E97: 5 | F97: 5 | L97: 0 | O97: 5 | V97: 0
A98: 92 | B98: 10058327494 | C98: Zdeněk HRADISKÝ | D98: IVAR CS - AUTHOR TEAM | E98: 4 | F98: 4 | L98: 0 | V98: 4
A99: 93 | B99: 10047379127 | C99: JEŘÁBEK, Ondřej | D99: SP KOLO LOAP SPECIALIZED | E99: 2 | F99: 2 | L99: 0 | Q99: 1 | R99: 1 | V99: 0
A100: 94 | B100: 10047418634 | C100: GROH, Daniel | D100: AUTHOR TEAM STUPNO | E100: 1 | F100: 1 | L100: 0 | N100: 1 | V100: 0
A101: 95 | B101: 10093446346 | C101: MAREK, Matyáš | D101: PROFI SPORT CHEB | E101: 1 | F101: 1 | G101: 1 | L101: 0 | V101: 0
A102: 96 | B102: 10047391554 | C102: BRABEC, Adam | D102: BIKE CLUB MĚSTO TOUŠKOV | E102: 1 | F102: 1 | L102: 0 | R102: 1 | V102: 0
A103: 97 | B103: 10059128857 | C103: BRÜCKNER, Filip | D103: RAJEC 100% TREK | E103: 1 | F103: 1 | L103: 0 | R103: 1 | V103: 0
A104: 98 | B104: 10047404284 | C104: HEZINA, Jan | D104: TJ STADION LOUNY | E104: 1 | F104: 1 | L104: 0 | V104: 1
A105: 99 | B105: 10047448441 | C105: NOVÁČEK, Matyáš | D105: TJ STADION LOUNY | E105: 1 | F105: 1 | L105: 0 | V105: 1
A106: 100 | B106: 10091472192 | C106: Otakar ČAPEK | D106: KC KOOPERATIVA JABLONEC N. N. | E106: 1 | F106: 1 | L106: 0 | V106: 1
A107: 101 | B107: 10012390722 | C107: HLADÍK, Petr | D107: SK PETŘÍN PLZEŇ | E107: 0 | F107: 0 | L107: 0 | V107: 0
A108: 102 | B108: 10084011175 | C108: JEŽEK, Aleš | D108: CK Dakom Pharma Kyjov | E108: 0 | F108: 0 | L108: 0 | V108: 0
A109: 103 | B109: 10047399941 | C109: JURICA, Samuel | D109: TUFO PARDUS Prostějov z.s. | E109: 0 | F109: 0 | L109: 0 | V109: 0
A110: 104 | B110: 10091862822 | C110: KAŠPÁREK, Lukáš | D110: TUFO PARDUS Prostějov z.s. | E110: 0 | F110: 0 | L110: 0 | V110: 0
A111: 105 | B111: 10092952050 | C111: KLEPSA, Lukáš | D111: AC SPARTA PRAHA | E111: 0 | F111: 0 | L111: 0 | V111: 0
A112: 106 | B112: 10084839214 | C112: KORBEL, Daniel | D112: TJ LOKOMOTIVA BEROUN | E112: 0 | F112: 0 | L112: 0 | V112: 0
A113: 107 | B113: 10047452178 | C113: MINAŘÍK, Viktor | D113: SPORTCOMPLEX BŘECLAV | E113: 0 | F113: 0 | L113: 0 | V113: 0
A114: 108 | B114: 10047404385 | C114: PARMA, Václav | D114: TJ STADION LOUNY | E114: 0 | F114: 0 | L114: 0 | V114: 0
A115: 109 | B115: 10079889786 | C115: PEŠ, Ladislav | D115: TEAM FORMAN CINELLI | E115: 0 | F115: 0 | L115: 0 | V115: 0
A116: 110 | B116: 10047420957 | C116: PÍGL, Jan | D116: TJ STADION LOUNY | E116: 0 | F116: 0 | L116: 0 | V116: 0

Sheet Žky
A1: Průběžné pořadí ČP mládeže a žen 2019
A3: ŽÁKYNĚ
A4: Datum 28. 5. 2019 | B4: 2019-09-09 | C4: 17:46:06 | D4: Last RECALCULATION
A6: Pořadí | B6: UCI ID | C6: Jméno a příjmení | D6: Oddíl | E6: Body CLK | F6: Body TOP | G6: Soběslav krit | H6: Kyjov Krit. | I6: Olomouc | J6: Plzeň krit | K6: Ostrava krit. | L6: Jablonec n. N. | M6: Terezín | N6: Zbraslav Sil. | O6: Kyjov Sil. | P6: Olomouc | Q6: Kroměžíž | R6: Plzeň | S6: Bílovec | T6: Nový Jičín | U6: Ostrava | V6: Jablonec n. N. | W6: Židovice | X6: MČR ČJ | Y6: MČR ČD | Z6: MČR
A7: 1 | B7: 10047334667 | C7: MARKOVÁ, Adéla | D7: DUKLA PRAHA | E7: =SUM(G7:AK7) -> 1030 | F7: 973 | G7: 37 | H7: 30 | I7: 30 | J7: 30 | K7: 30 | L7: 24 | N7: 33 | O7: 75 | P7: 100 | Q7: 51 | R7: 75 | T7: 100 | U7: 100 | V7: 75 | X7: 110 | Y7: 40 | Z7: 90
A8: 2 | B8: 10047776625 | C8: DLASKOVÁ, Vanda | D8: TJ AŠ ML.BOLESLAV | E8: 895 | F8: 895 | G8: 30 | H8: 37 | I8: 24 | J8: 50 | L8: 50 | N8: 75 | O8: 100 | P8: 75 | Q8: 60 | R8: 100 | V8: 60 | X8: 84 | Y8: 40 | Z8: 110
A9: 3 | B9: 10047400749 | C9: MÜLLEROVÁ, Patricie | D9: TUFO PARDUS Prostějov z.s. | E9: 916 | F9: 811 | G9: 50 | H9: 50 | I9: 50 | J9: 37 | K9: 50 | L9: 37 | N9: 100 | O9: 33 | P9: 42 | Q9: 75 | R9: 35 | S9: 48 | T9: 51 | U9: 51 | V9: 55 | X9: 54 | Y9: 33 | Z9: 65
A10: 4 | B10: 10047400446 | C10: GRULICHOVÁ, Eliška | D10: TUFO PARDUS Prostějov z.s. | E10: 707 | F10: 630 | G10: 22 | H10: 14 | I10: 20 | J10: 17 | K10: 18 | L10: 27 | N10: 37 | O10: 55 | P10: 60 | Q10: 26 | R10: 60 | S10: 55 | T10: 75 | U10: 55 | V10: 37 | X10: 50 | Y10: 33 | Z10: 46
A11: 5 | B11: 10047388726 | C11: JADRNÁ, Veronika | D11: SPORTCOMPLEX BŘECLAV | E11: 620 | F11: 620 | G11: 27 | H11: 21 | I11: 22 | K11: 22 | L11: 0 | N11: 40 | O11: 30 | P11: 55 | Q11: 32 | S11: 75 | T11: 55 | U11: 48 | V11: 0 | X11: 68 | Y11: 50 | Z11: 75
A12: 6 | B12: 10047416008 | C12: NAVRKALOVÁ, Nikola | D12: KC KOOPERATIVA Jablonec nad Nisou, z.s. | E12: 561 | F12: 561 | H12: 22 | I12: 12 | K12: 20 | L12: 27 | N12: 45 | O12: 40 | P12: 33 | S12: 45 | T12: 48 | U12: 60 | V12: 51 | X12: 60 | Y12: 28 | Z12: 70
A13: 7 | B13: 10052355631 | C13: DUBCOVÁ, Štěpánka | D13: TEAM FORMAN CINELLI | E13: 414 | F13: 414 | I13: 37 | K13: 9 | L13: 0 | O13: 34 | P13: 40 | Q13: 37 | S13: 100 | T13: 60 | V13: 0 | X13: 47 | Y13: 50
A14: 8 | B14: 10047078326 | C14: ČERNÁ, Kateřina | D14: PROFI SPORT CHEB | E14: 393 | F14: 393 | G14: 24 | H14: 15 | J14: 18 | K14: 13 | L14: 16 | O14: 36 | R14: 38 | S14: 40 | T14: 38 | U14: 37 | V14: 36 | X14: 41 | Z14: 41
A15: 9 | B15: 10092948212 | C15: KAŇKOVSKÁ, Nela | D15: MAPEI MERIDA KAŇKOVSKÝ | E15: 374 | F15: 373 | G15: 14 | H15: 1 | I15: 2 | J15: 20 | K15: 10 | L15: 19 | N15: 23 | O15: 20 | P15: 26 | R15: 36 | S15: 42 | U15: 42 | V15: 34 | X15: 35 | Y15: 12 | Z15: 38
A16: 10 | B16: 10047310217 | C16: HERMANOVÁ, Adéla | D16: SPORTCOMPLEX BŘECLAV | E16: 336 | F16: 336 | G16: 21 | H16: 5 | I16: 27 | J16: 16 | K16: 24 | L16: 0 | N16: 19 | O16: 15 | P16: 19 | Q16: 23 | S16: 37 | T16: 21 | U16: 26 | V16: 0 | X16: 32 | Y16: 20 | Z16: 31
A17: 11 | B17: 10083955100 | C17: ZOUBKOVÁ, Veronika | D17: SPORTCOMPLEX BŘECLAV | E17: 324 | F17: 324 | G17: 20 | H17: 9 | I17: 10 | J17: 15 | K17: 3 | L17: 0 | N17: 26 | O17: 17 | P17: 37 | Q17: 24 | R17: 33 | U17: 30 | V17: 0 | X17: 44 | Y17: 20 | Z17: 36
A18: 12 | B18: 10047346690 | C18: RADOVÁ, Daniela | D18: STEVENS Cykloklub Benešov | E18: 323 | F18: 323 | H18: 24 | I18: 21 | J18: 27 | L18: 0 | N18: 32 | O18: 35 | P18: 10 | Q18: 55 | R18: 42 | V18: 0 | X18: 38 | Z18: 39
A19: 13 | B19: 10047450966 | C19: ŠULCOVÁ, Jana | D19: EXPRES CZ - TUFO TEAM KOLÍN | E19: 319 | F19: 319 | H19: 20 | I19: 16 | J19: 21 | L19: 0 | N19: 42 | O19: 37 | P19: 32 | Q19: 51 | R19: 34 | V19: 0 | X19: 26 | Z19: 40
A20: 14 | B20: 10047410247 | C20: KOTLÍKOVÁ, Adéla | D20: CK LOKO Rakovník | E20: 312 | F20: 312 | H20: 2 | I20: 14 | J20: 24 | L20: 20 | N20: 60 | O20: 45 | P20: 48 | R20: 51 | V20: 48
A21: 15 | B21: 10047438438 | C21: SMUDALOVÁ, Pavla | D21: FORCE TEAM JESENÍK | E21: 308 | F21: 308 | H21: 16 | I21: 17 | K21: 14 | L21: 0 | N21: 38 | O21: 26 | P21: 28 | Q21: 25 | T21: 31 | U21: 34 | V21: 0 | X21: 20 | Y21: 16 | Z21: 43
A22: 16 | B22: 10092938209 | C22: CIBULKOVÁ, Tereza | D22: BIKECLINIC JUNIOR TEAM | E22: 296 | F22: 296 | I22: 18 | J22: 19 | L22: 13 | P22: 35 | Q22: 38 | R22: 45 | V22: 42 | X22: 14 | Y22: 28 | Z22: 44
A23: 17 | B23: 10047274144 | C23: RUPOVÁ, Dominika | D23: CK FESO PETŘVALD | E23: 265 | F23: 265 | I23: 6 | K23: 27 | L23: 0 | N23: 22 | P23: 23 | Q23: 28 | S23: 38 | T23: 42 | U23: 28 | V23: 0 | Y23: 16 | Z23: 35
A24: 18 | B24: 10047421866 | C24: DOSTÁLOVÁ, Anna | D24: LYKO KLUB PRACHATICE z.s. | E24: 265 | F24: 265 | L24: 30 | R24: 55 | V24: 100 | Z24: 80
A25: 19 | B25: 10092625785 | C25: MIKULÁŠKOVÁ, Alice | D25: TJ FAVORIT BRNO | E25: 264 | F25: 264 | I25: 15 | K25: 8 | L25: 19 | N25: 31 | P25: 30 | R25: 40 | T25: 36 | U25: 45 | V25: 40
A26: 20 | B26: 10079588884 | C26: NOVÁKOVÁ, Karla | D26: Jaroslav Kulhavy Cycling Team | E26: 251 | F26: 251 | K26: 19 | L26: 22 | N26: 30 | O26: 29 | Q26: 30 | U26: 40 | V26: 35 | Y26: 4 | Z26: 42
A27: 21 | B27: 10079506840 | C27: LAJCHOVÁ, Ema | D27: TEAM FORMAN CINELLI | E27: 238 | F27: 238 | H27: 17 | I27: 7 | K27: 16 | L27: 0 | O27: 21 | P27: 17 | Q27: 27 | S27: 34 | T27: 19 | U27: 27 | V27: 0 | X27: 13 | Y27: 8 | Z27: 32
A28: 22 | B28: 10092930226 | C28: DVOŘÁKOVÁ, Petra | D28: SKP Duha Lanškroun | E28: 214 | F28: 214 | K28: 37 | L28: 0 | O28: 23 | Q28: 40 | T28: 40 | V28: 0 | X28: 29 | Z28: 45
A29: 23 | B29: 10047362555 | C29: PERNICKÁ, Adéla | D29: BIKE PRO RACING | E29: 207 | F29: 207 | L29: 0 | Q29: 33 | V29: 0 | Y29: 24 | Z29: 150
A30: 24 | B30: 10082405726 | C30: DOUDĚROVÁ, Kateřina | D30: Jaroslav Kulhavy Cycling Team | E30: 207 | F30: 207 | K30: 5 | L30: 14 | N30: 29 | O30: 24 | U30: 38 | V30: 38 | Y30: 4 | Z30: 55
A31: 25 | B31: 10047395796 | C31: ČERNÁ, Hana | D31: Drahanský Sport Team | E31: 203 | F31: 203 | L31: 0 | O31: 22 | P31: 34 | Q31: 29 | S31: 36 | T31: 26 | V31: 0 | X31: 23 | Z31: 33
A32: 26 | B32: 10047386403 | C32: MÍČKOVÁ, Magdaléna | D32: ACS DRAK VRBNO | E32: 189 | F32: 189 | H32: 10 | I32: 9 | L32: 0 | N32: 20 | O32: 11 | P32: 16 | Q32: 19 | S32: 32 | T32: 20 | V32: 0 | X32: 10 | Y32: 12 | Z32: 30
A33: 27 | C33: ŠPICAROVÁ, Karolína | D33: CUBE Cyklo Špicar Jílemnice | E33: 189 | F33: 189 | I33: 11 | K33: 17 | L33: 0 | P33: 38 | R33: 48 | U33: 75 | V33: 0
A34: 28 | B34: 10085271165 | C34: JANÍKOVÁ, Anna | D34: ACK Stará Ves nad Ondřejnicí | E34: 177 | F34: 177 | H34: 8 | K34: 6 | L34: 0 | O34: 19 | S34: 33 | T34: 29 | U34: 31 | V34: 0 | X34: 17 | Z34: 34
A35: 29 | B35: 10047331031 | C35: ČERNÁ, Karolína | D35: TJ AŠ ML.BOLESLAV | E35: 175 | F35: 175 | H35: 27 | L35: 0 | N35: 55 | O35: 51 | Q35: 42 | V35: 0
A36: 30 | B36: 10047415301 | C36: NOSKOVÁ, Kateřina | D36: CK Orlík Orlová | E36: 175 | F36: 175 | H36: 13 | K36: 1 | L36: 0 | O36: 18 | P36: 21 | Q36: 22 | T36: 28 | U36: 35 | V36: 0 | Z36: 37
A37: 31 | B37: 10079505729 | C37: HOLÁŠKOVÁ, Amálie | D37: TEAM FORMAN CINELLI | E37: 164 | F37: 164 | H37: 4 | K37: 2 | L37: 0 | O37: 12 | Q37: 20 | S37: 35 | T37: 18 | U37: 25 | V37: 0 | X37: 11 | Y37: 8 | Z37: 29
A38: 32 | B38: 10072551031 | C38: HERMANOVÁ, Beata | D38: SPORTCOMPLEX BŘECLAV | E38: 151 | F38: 151 | G38: 19 | I38: 4 | K38: 21 | L38: 0 | N38: 25 | P38: 27 | T38: 23 | U38: 32 | V38: 0
A39: 33 | B39: 10093317216 | C39: RICHTEROVÁ, Karolína | D39: TUFO PARDUS Prostějov z.s. | E39: 137 | F39: 137 | G39: 15 | H39: 1 | I39: 1 | L39: 0 | N39: 18 | O39: 16 | P39: 25 | Q39: 21 | V39: 0 | X39: 12 | Z39: 28
A40: 34 | B40: 10056551384 | C40: HANÁKOVÁ, Eliška | D40: MORAVEC Team | E40: 134 | F40: 134 | L40: 0 | O40: 60 | V40: 0 | Y40: 24 | Z40: 50
A41: 35 | B41: 10079627987 | C41: LHOTÁKOVÁ, Adéla | D41: Bike Freaks Holice | E41: 130 | F41: 130 | L41: 0 | N41: 48 | P41: 45 | T41: 37 | V41: 0
A42: 36 | B42: 10047347704 | C42: HODLOVÁ, Nikola | D42: CYKLOSPORT-PITSTOP.CZ | E42: 129 | F42: 129 | H42: 3 | J42: 22 | L42: 0 | N42: 35 | O42: 32 | R42: 37 | V42: 0
A43: 37 | B43: 10078547348 | C43: HURAČOVÁ, Markéta | D43: CK FESO PETŘVALD | E43: 128 | F43: 128 | I43: 19 | K43: 7 | L43: 0 | N43: 21 | P43: 24 | T43: 24 | U43: 33 | V43: 0
A44: 38 | B44: 10092893143 | C44: DUBCOVÁ, Anna | D44: TEAM FORMAN CINELLI | E44: 120 | F44: 120 | H44: 19 | K44: 11 | L44: 0 | T44: 30 | V44: 0 | Z44: 60
A45: 39 | B45: 10055862987 | C45: UHMANOVÁ, Kateřina | D45: MS BIKE ACADEMY RACING | E45: 116 | F45: 116 | H45: 6 | L45: 0 | N45: 34 | O45: 31 | Q45: 45 | V45: 0
A46: 40 | B46: 10090877664 | C46: LALÁKOVÁ, Anna | D46: KOVO PRAHA | E46: 110 | F46: 110 | G46: 18 | K46: 12 | L46: 0 | N46: 24 | T46: 27 | U46: 29 | V46: 0
A47: 41 | B47: 10079507345 | C47: POLÁŠKOVÁ, Ema | D47: TEAM FORMAN CINELLI | E47: 104 | F47: 104 | I47: 3 | K47: 15 | L47: 0 | P47: 18 | T47: 32 | U47: 36 | V47: 0
A48: 42 | B48: 10094810208 | C48: RAPANTOVÁ Tereza | D48: MG BIKE TEAM | E48: 102 | F48: 102 | I48: 1 | L48: 11 | P48: 12 | T48: 17 | U48: 23 | V48: 30 | X48: 8
A49: 43 | B49: 10047400143 | C49: KROUPOVÁ, Zuzana | D49: AC SPARTA PRAHA | E49: 93 | F49: 93 | L49: 0 | N49: 51 | O49: 42 | V49: 0
A50: 44 | B50: 10047409439 | C50: DOLEŽALOVÁ, Markéta | D50: Bike Freaks Holice | E50: 85 | F50: 85 | L50: 0 | N50: 27 | P50: 22 | Q50: 36 | V50: 0
A51: 45 | B51: 10079890594 | C51: RIEDLOVÁ, Nela | D51: TEAM FORMAN CINELLI | E51: 79 | F51: 79 | H51: 11 | I51: 1 | L51: 0 | O51: 13 | Q51: 18 | V51: 0 | X51: 9 | Z51: 27
A52: 46 | B52: 10047449754 | C52: VIKOVÁ, Hanka | D52: DUKLA PRAHA | E52: 78 | F52: 78 | I52: 8 | L52: 0 | P52: 36 | T52: 34 | V52: 0
A53: 47 | B53: 10060004281 | C53: CEBULOVÁ, Klára | D53: BITTERS SUPERIOR CYKLOLIVE TEAM | F53: 66 | L53: 21 | V53: 45
A54: 48 | B54: 10093154740 | C54: LEBEDOVÁ, Kristýna | D54: CK Jihočeské naděje | E54: =SUM(G54:AK54) -> 59 | F54: 59 | G54: 13 | L54: 0 | N54: 16 | R54: 30 | V54: 0
A55: 49 | B55: 10079420247 | C55: LIŠKOVÁ, Viola | D55: G.BENEDIKT ŠVECCYKLOTEAM ŽELEČ | E55: =SUM(G55:AK55) -> 53 | F55: 53 | G55: 17 | I55: 5 | L55: 0 | P55: 31 | V55: 0
A56: 50 | B56: 10092873844 | C56: LAZAROVÁ, Elen | D56: TJ FAVORIT BRNO | E56: =SUM(G56:AK56) -> 51 | F56: 51 | K56: 1 | L56: 0 | N56: 17 | P56: 11 | U56: 22 | V56: 0
A57: 51 | B57: 10093328330 | C57: BOŘÁNKOVÁ, Lucie | D57: AC SPARTA PRAHA | F57: 48 | L57: 15 | V57: 33
A58: 52 | B58: 10090352753 | C58: BENEŠOVÁ, Ema | D58: SPORTCOMPLEX BŘECLAV | E58: =SUM(G58:AK58) -> 43 | F58: 43 | K58: 4 | L58: 0 | T58: 15 | U58: 24 | V58: 0
A59: 53 | B59: 10063273484 | C59: BURGERMEISTEROVÁ, Lucie | D59: TJ SOKOL PLAVY - CYKLO BENDA | F59: 43 | L59: 12 | V59: 31
A60: 54 | B60: 10059561014 | C60: PANUŠOVÁ, Anna | D60: Bike Freaks Holice | E60: =SUM(G60:AK60) -> 37 | F60: 37 | L60: 0 | P60: 20 | Q60: 17 | V60: 0
A61: 55 | B61: 10066429119 | C61: STRAKATÁ, Vendula | D61: DUKLA PRAHA | E61: =SUM(G61:AK61) -> 36 | F61: 36 | L61: 0 | N61: 36 | V61: 0
A62: 56 | C62: PALAGYIOVÁ, Klára | D62: ACK Stará Ves nad Ondřejnicí | E62: =SUM(G62:AK62) -> 35 | F62: 35 | L62: 0 | T62: 14 | U62: 21 | V62: 0
A63: 57 | B63: 10047346892 | C63: DUŠKOVÁ, Kateřina | D63: TJ Sokol Plavy - Cyklo Benda | E63: =SUM(G63:AK63) -> 32 | F63: 32 | H63: 7 | L63: 0 | O63: 25 | V63: 0
A64: 58 | B64: 10090732467 | C64: HEZINOVÁ, Daniela | D64: TJ STADION LOUNY | E64: =SUM(G64:AK64) -> 32 | F64: 32 | L64: 0 | R64: 32 | V64: 0
A65: 59 | B65: 10084771617 | C65: Adéla STRÁNSKÁ | D65: IVAR CS - AUTHOR TEAM | F65: 32 | V65: 32
A66: 60 | B66: 10092977918 | C66: KRÁLOVÁ, Julie | D66: MS BIKE ACADEMY RACING | E66: =SUM(G66:AK66) -> 31 | F66: 31 | L66: 0 | Q66: 31 | V66: 0
A67: 61 | B67: 10093327421 | C67: SYSLOVÁ, Barbara | D67: CYKLOSPORT-PITSTOP.CZ | E67: 31 | F67: 31 | L67: 0 | R67: 31 | V67: 0
A68: 62 | B68: 10092978120 | C68: HOJDOVÁ, Michaela | D68: MS BIKE ACADEMY RACING | E68: 29 | F68: 29 | L68: 0 | R68: 29 | V68: 0
A69: 63 | B69: 10066586036 | C69: GROHOVÁ, Lucie | D69: AUTHOR TEAM STUPNO | E69: 28 | F69: 28 | L69: 0 | N69: 28 | V69: 0
A70: 64 | B70: 10090731962 | C70: LEBEDOVÁ, Adéla | D70: CK Jihočeské naděje | E70: 28 | F70: 28 | L70: 0 | R70: 28 | V70: 0
A71: 65 | B71: 10079504517 | C71: KALČÍKOVÁ, Barbora | D71: MS BIKE ACADEMY RACING | E71: 16 | F71: 16 | L71: 0 | Q71: 16 | V71: 0
A72: 66 | B72: 10079418833 | C72: HRDINOVÁ, Anna | D72: CYLING ACADEMY TÁBOR | E72: 16 | F72: 16 | G72: 16 | L72: 0 | V72: 0
A73: 67 | C73: OSLADILOVÁ, Barbora | D73: FORCE TEAM JESENÍK | E73: 15 | F73: 15 | I73: 1 | L73: 0 | P73: 14 | V73: 0
A74: 68 | B74: 10056468734 | C74: OLIVOVÁ, Denisa | D74: HEAD PRO TEAM OPAVA | E74: 14 | F74: 14 | L74: 0 | O74: 14 | V74: 0
A75: 69 | C75: HRADÍLKOVÁ, Zuzana | D75: MG BIKE TEAM | E75: 13 | F75: 13 | L75: 0 | P75: 13 | V75: 0
A76: 70 | B76: 10053649670 | C76: KUNCOVÁ, Barbora | D76: TJ FAVORIT BRNO | E76: 0 | F76: 0 | L76: 0 | V76: 0

Sheet Administrace (hidden)
D1: Pro listy OD | E1: 4
D2: Pro listy DO | E2: 4
B3: Provede výpočet dle metodiky ČSC - komise mládeže (výpočet může trvat několik minut)
B4: Všechny vyjmenované TOP
B5: 5 TOP výsledků KRITERIUM
B6: 7 TOP Výsledků SILNICE
B9: Rekapitulace
B10: Posledni prepocet proveden: | D10: 14:54:25
B11: 2019-09-09
B12: 19:45:21 | C12: 19:46:39

Sheet IMPORT (hidden)
A2: Parametry Importu | G2: Date | H2: 2019-09-09
A3: Kategorie | C3: Jmeno zavodu | D3: Typ Zavodu | G3: Time | H3: 17:59:17
A4: 6 | C4: 16 | D4: 1 | G4: Startujiich | H4: 50
A5: Položky pro import | G5: Kategorie | H5: Žst
A6: Pořadí | B6: Poradi ID Licence | C6: Result | D6: SILNIC | E6: KRITERIUM | G6: TYP zavodu | H6: SILNIC
A7: 1. | B7: 10081977411 | C7: ok-PÁTÍK, Stanislav | D7: 100 | E7: 50 | G7: Zavod Jmeno | H7: Jablonec n. N.
A8: 2. | B8: 10047315469 | C8: ok-ŠILHAVÝ, Ondřej | D8: 75 | E8: 37
A9: 3. | B9: 10047280309 | C9: ok-KOBR, Richard | D9: 60 | E9: 30
A10: 4. | B10: 10047280410 | C10: ok-KOBR, Robert | D10: 55 | E10: 27
A11: 5. | B11: 10059129059 | C11: ok-ELBADRI, Jakub | D11: 51 | E11: 24
A12: 6. | B12: 10053209130 | C12: ok-NOVÁK, Filip | D12: 48 | E12: 22
A13: 7. | B13: 10053651286 | C13: ok-OPLUŠTIL, Ivo | D13: 45 | E13: 21
A14: 8. | B14: 10047818354 | C14: ok-JEŽEK, Václav | D14: 42 | E14: 20
A15: 9. | B15: 10009358056 | C15: ok-RUBEŠ, Daniel | D15: 40 | E15: 19
A16: 10. | B16: 10047349623 | C16: ok-KOBLÍŽEK, Vojtěch | D16: 38 | E16: 19
A17: 11. | B17: 10047234536 | C17: ok-KOHOUT, Jaromír | D17: 37 | E17: 27
A18: 12. | B18: 10079785009 | C18: ok-HORYNA, Vlastimil | D18: 36 | E18: 16
A19: 13. | B19: 10093205260 | C19: ok-JOHÁNEK, Dalibor | D19: 35 | E19: 15
A20: 14. | B20: 10047422876 | C20: ok-BÁRTA, Martin | D20: 34 | E20: 14
A21: 15. | B21: 10053648963 | C21: ok-VAVRO, Kristián | D21: 33 | E21: 13
A22: 16. | B22: 10047318402 | C22: ok-SAMEC, Filip | D22: 32 | E22: 12
A23: 17. | B23: 10047410651 | C23: ok-DOBRÝ, Lukáš | D23: 31 | E23: 11
A24: 18. | B24: 10059526961 | C24: ok-POLÁK, Matyáš | D24: 30 | E24: 10
A25: 19. | B25: 10046576552 | C25: ok-ŠAFRÁNEK, Ondřej | D25: 29 | E25: 9
A26: 20. | B26: 10068131972 | C26: ok-Matěj PEKAŘ | D26: 28 | E26: 8
A27: 21. | B27: 10081593754 | C27: LICENCE NENALEZENA | D27: 27 | E27: 7
A28: 22. | B28: 10054142653 | C28: ok-HELLMICH, Jonáš | D28: 26 | E28: 6
A29: 23. | B29: 10094955405 | C29: ok-BITTNER Jan | D29: 25 | E29: 5
A30: 24. | B30: 10046656576 | C30: ok-KARÁSEK, David | D30: 24 | E30: 4
A31: 25. | B31: 10047334768 | C31: ok-KUBA, Jakub | D31: 23 | E31: 3
A32: 26. | B32: 10074978152 | C32: ok-BARBOŘÍK, Matěj | D32: 22 | E32: 2
A33: 27. | B33: 10096726764 | C33: ok-KUDWEIS,Vít | D33: 21 | E33: 1
A34: 28. | B34: 10012987573 | C34: ok-MUROŇ, Matyáš | D34: 20 | E34: 1
A35: 29. | B35: 10059729752 | C35: ok-HRDLIČKA, Adam | D35: 19 | E35: 1
A36: 30. | B36: 10084836988 | C36: ok-KOTSCHY, Vít | D36: 18 | E36: 1
A37: 31. | B37: 10004772683 | C37: ok-PEŠEK, Adam | D37: 17 | E37: 0
A38: 32. | B38: 10047418533 | C38: ok-KROC, Vladimír | D38: 16 | E38: 0
A39: 33. | B39: 10047374073 | C39: ok-HOJKA, František | D39: 15 | E39: 0
A40: 34. | B40: 10047452784 | C40: ok-PŘIDAL, Tobiáš | D40: 14 | E40: 0
A41: 35. | B41: 10092872935 | C41: ok-SMITH, Michael Filip | D41: 13 | E41: 0
A42: 36. | B42: 10066160448 | C42: ok-Adam STREJČEK | D42: 12 | E42: 0
A43: 37. | B43: 10078831173 | C43: ok-SOUKUP, Vojtěch | D43: 11 | E43: 0
A44: 38. | B44: 10046534318 | C44: ok-ŽENÍŠEK, Martin | D44: 10 | E44: 0
A45: 39. | B45: 10047394483 | C45: ok-VACEK, Bertil | D45: 9 | E45: 0
A46: 40. | B46: 10082332974 | C46: ok-KRAVÁK, Vojtěch | D46: 8 | E46: 0
A47: 41. | B47: 10047374982 | C47: ok-MIŇOVSKÝ, Prokop | D47: 7 | E47: 0
A48: 42. | B48: 10047452784 | C48: ok-PŘIDAL, Tobiáš | D48: 6 | E48: 0
A49: 43. | B49: 10093188688 | C49: ok-WALDHAUSER, Vít | D49: 5 | E49: 0
A50: 44. | B50: 10058327494 | C50: ok-Zdeněk HRADISKÝ | D50: 4 | E50: 0
A51: 45. | B51: 10082602352 | C51: ok-VLČEK, Miroslav | D51: 3 | E51: 0
A52: 46. | B52: 10047047610 | C52: ok-HANZELKA, Lukáš | D52: 2 | E52: 0
A53: 47. | B53: 10046565842 | C53: ok-ZEDNÍK, Jiří | D53: 1 | E53: 0
A54: 48. | B54: 10047404284 | C54: ok-HEZINA, Jan | D54: 1 | E54: 0
A55: 49. | B55: 10047448441 | C55: ok-NOVÁČEK, Matyáš | D55: 1 | E55: 0
A56: 50. | B56: 10091472192 | C56: ok-Otakar ČAPEK | D56: 1 | E56: 0
A57: 51. | D57: 0 | E57: 0
A58: 52. | D58: 0 | E58: 0
A59: 53. | D59: 0 | E59: 0
A60: 54. | D60: 0 | E60: 0
A61: 55. | D61: 0 | E61: 0
A62: 56. | D62: 0 | E62: 0
A63: 57. | D63: 0 | E63: 0
A64: 58. | D64: 0 | E64: 0
A65: 59. | D65: 0 | E65: 0
A66: 60. | D66: 0 | E66: 0
A67: 61. | D67: 0 | E67: 0
A68: 62. | D68: 0 | E68: 0
A69: 63. | D69: 0 | E69: 0
A70: 64. | D70: 0 | E70: 0
A71: 65. | D71: 0 | E71: 0
A72: 66. | D72: 0 | E72: 0
A73: 67. | D73: 0 | E73: 0
A74: 68. | D74: 0 | E74: 0
A75: 69. | D75: 0 | E75: 0
A76: 70. | D76: 0 | E76: 0
A77: 71. | D77: 0 | E77: 0
A78: 72. | D78: 0 | E78: 0
A79: 73. | D79: 0 | E79: 0
A80: 74. | D80: 0 | E80: 0
A81: 75. | D81: 0 | E81: 0
A82: 76. | D82: 0 | E82: 0
A83: 77. | D83: 0 | E83: 0
A84: 78. | D84: 0 | E84: 0
A85: 79. | D85: 0 | E85: 0
A86: 80. | D86: 0 | E86: 0
A87: 81. | D87: 0 | E87: 0
A88: 82. | D88: 0 | E88: 0
A89: 83. | D89: 0 | E89: 0
A90: 84. | D90: 0 | E90: 0
A91: 85. | D91: 0 | E91: 0
A92: 86. | D92: 0 | E92: 0
A93: 87. | D93: 0 | E93: 0
A94: 88. | D94: 0 | E94: 0
A95: 89. | D95: 0 | E95: 0
A96: 90. | D96: 0 | E96: 0
A97: 91. | D97: 0 | E97: 0
A98: 92. | D98: 0 | E98: 0
A99: 93. | D99: 0 | E99: 0
A100: 94. | D100: 0 | E100: 0
A101: 95. | D101: 0 | E101: 0
A102: 96. | D102: 0 | E102: 0
A103: 97. | D103: 0 | E103: 0
A104: 98. | D104: 0 | E104: 0
A105: 99. | D105: 0 | E105: 0
A106: 100. | D106: 0 | E106: 0
A107: 101. | D107: 0 | E107: 0
A108: 102. | D108: 0 | E108: 0
A109: 103. | D109: 0 | E109: 0
A110: 104. | D110: 0 | E110: 0
A111: 105. | D111: 0 | E111: 0
A112: 106. | D112: 0 | E112: 0
A113: 107. | D113: 0 | E113: 0
A114: 108. | D114: 0 | E114: 0
A115: 109. | D115: 0 | E115: 0
A116: 110. | D116: 0 | E116: 0
A117: 111. | D117: 0 | E117: 0
A118: 112. | D118: 0
A119: 113. | D119: 0
A120: 114. | D120: 0
A121: 115. | D121: 0
A122: 116. | D122: 0
A123: 117. | D123: 0
A124: 118. | D124: 0
A125: 119. | D125: 0
A126: 120. | D126: 0
A127: 121. | D127: 0
A128: 122. | D128: 0
A129: 123. | D129: 0
A130: 124. | D130: 0
A131: 125. | D131: 0
A132: 126. | D132: 0
A133: 127. | D133: 0
A134: 128. | D134: 0
A135: 129. | D135: 0
A136: 130. | D136: 0
A137: 131. | D137: 0
A138: 132.
A139: 133.
A140: 134.
A141: 135.
A142: 136.
A143: 137.
A144: 138.
A145: 139.
A146: 140.
A147: 141.
A148: 142.
A149: 143.
A150: 144.
A151: 145.
A152: 146.
A153: 147.
A154: 148.
A155: 149.
A156: 150.
A157: 151.
A158: 152.
A159: 153.
A160: 154.
A161: 155.
A162: 156.
A163: 157.
A164: 158.
A165: 159.
A166: 160.
A167: 161.
A168: 162.
A169: 163.
A170: 164.
A171: 165.
A172: 166.
A173: 167.
A174: 168.
A175: 169.
A176: 170.
A177: 171.
A178: 172.
A179: 173.
A180: 174.
A181: 175.

Sheet Poznamky (hidden)
B1: Zacky | D1: ŽS | G1: Kky | I1: J | L1: Jky | P1: Z | S1: K
A2: 50 | B2: 10047776625 | C2: ok-DLASKOVÁ, Vanda | D2: 10059129059 | E2: ok-ELBADRI, Jakub | G2: 10047404082 | H2: ok-PROŠKOVÁ, Tereza | I2: 10046718517 | J2: ok-BITTNER, Pavel | L2: 10047392766 | M2: ok-LOCHMANOVÁ, Aneta | P2: 10009335121 | Q2: LICENCE NENALEZENA | S2: 10047201392 | T2: ok-TELECKÝ, Štěpán
A3: 37 | B3: 10047400749 | C3: ok-MÜLLEROVÁ, Patricie | D3: 10047280309 | E3: ok-KOBR, Richard | G3: 10047324058 | H3: ok-HOJKOVÁ, Štěpánka | I3: 10048200189 | J3: ok-BOUČEK, Jakub | L3: 10047281622 | M3: ok-HARTYCHOVÁ, Nicole | P3: 10015426519 | Q3: ok-ŠVILHÁKOVÁ, Tereza | S3: 10059931735 | T3: ok-ŠIROKÝ, Štěpán
A4: 30 | B4: 10047421866 | C4: ok-DOSTÁLOVÁ, Anna | D4: 10047280410 | E4: ok-KOBR, Robert | G4: 10047282935 | H4: ok-BÁRTOVÁ, Gabriela | I4: 10047227462 | J4: LICENCE NENALEZENA | L4: 10047786325 | M4: ok-OBOŘILOVÁ Tereza | P4: 10023478327 | Q4: ok-JANŮ, Kamila | S4: 10047431263 | T4: ok-KADLEC, Milan
A5: 27 | B5: 10047416008 | C5: ok-NAVRKALOVÁ, Nikola | D5: 10047374073 | E5: ok-HOJKA, František | G5: 10047403981 | H5: ok-PARMOVÁ, Barbora | I5: 10048201203 | J5: ok-STOČEK, Bruno | L5: 10047324159 | M5: LICENCE NENALEZENA | P5: 10014825018 | Q5: ok-VORÁČOVÁ, Naďa | S5: 10056008184 | T5: ok-SEEMAN, Adam
A6: 24 | B6: 10047334667 | C6: ok-MARKOVÁ, Adéla | D6: 10081977411 | E6: ok-PÁTÍK, Stanislav | G6: 10047782887 | H6: ok-ZEMANOVÁ, Kristýna | I6: 10047277073 | J6: ok-ŤOUPALÍK, Jakub | L6: 10047371144 | M6: ok-NAVRKALOVÁ, Michaela | P6: 10023478226 | Q6: ok-VANÍČKOVÁ, Tereza | S6: 10018791712 | T6: ok-MRÁZ, Daniel
A7: 22 | B7: 10079588884 | C7: ok-NOVÁKOVÁ, Karla | D7: 10092872935 | E7: ok-SMITH, Michael Filip | G7: 10047765309 | H7: ok-HLADÍKOVÁ, Kateřina | I7: 10000832665 | J7: ok-CAMRDA, Karel | L7: 10092874046 | M7: ok-SVOBODOVÁ, Gabriela | P7: 10010944008 | Q7: ok-UNGERMANOVÁ, Elizabeth | S7: 10092747542 | T7: ok-FIALA, Matyáš
A8: 21 | B8: 10060004281 | C8: LICENCE NENALEZENA | D8: 10093205260 | E8: ok-JOHÁNEK, Dalibor | G8: 10047304557 | H8: ok-VIKTOROVÁ, Nela | I8: 10047786628 | J8: ok-HNÍK, Jakub | L8: 10047329718 | M8: ok-KLÍMOVÁ, Natálie | S8: 10047348108 | T8: ok-STŘÍŽ, Matyáš
A9: 20 | B9: 10047410247 | C9: ok-KOTLÍKOVÁ, Adéla | D9: 10074978152 | E9: ok-BARBOŘÍK, Matěj | G9: 10047455313 | H9: ok-RŮŽIČKOVÁ, Anna | I9: 10047236758 | J9: ok-HETFLEIŠ, Petr | L9: 10092980544 | M9: ok-KRAVÁKOVÁ, Gabriela | S9: 10047287783 | T9: ok-JELÍNEK, Marek
A10: 19 | B10: 10092625785 | C10: ok-MIKULÁŠKOVÁ, Alice | D10: 10047422876 | E10: ok-BÁRTA, Martin | G10: 10047448643 | H10: ok-RUNTOVÁ, Hanka | I10: 10047374275 | J10: ok-RUNT, Lukáš | L10: 10097269358 | M10: LICENCE NENALEZENA | S10: 10047292130 | T10: ok-OBDRŽÁLEK, Tomáš
A11: 19 | B11: 10092948212 | C11: ok-KAŇKOVSKÁ, Nela | D11: 10047418533 | E11: ok-KROC, Vladimír | G11: 10047420149 | H11: ok-BARTOŠOVÁ, Martina | I11: 10046043254 | J11: LICENCE NENALEZENA | L11: 10047781978 | M11: ok-VERNEROVÁ, Klára | S11: 10046370125 | T11: ok-JINDŘICH, Pavel
A12: 27 | B12: 10047400446 | C12: ok-GRULICHOVÁ, Eliška | D12: 10047234536 | E12: ok-KOHOUT, Jaromír | G12: 10047358515 | H12: ok-DRBOHLAVOVÁ, Eliška | I12: 10047304456 | J12: ok-ČEKAL, Josef | S12: 10048001139 | T12: ok-VÁVRA, Petr
A13: 16 | B13: 10047078326 | C13: ok-ČERNÁ, Kateřina | D13: 10084836988 | E13: ok-KOTSCHY, Vít | G13: 10047317287 | H13: ok-VINKLÁRKOVÁ, Marie | I13: 10047256461 | J13: ok-BREDLER, Matyáš Jiří | S13: 10086057875 | T13: ok-NOVÁK, Pavel
A14: 15 | B14: 10093328330 | C14: LICENCE NENALEZENA | D14: 10053648963 | E14: ok-VAVRO, Kristián | G14: 10047292332 | H14: ok-DOSTÁLOVÁ, Lucie | I14: 10065321602 | J14: ok-KOPELENT, David | S14: 10047286672 | T14: ok-DOSTÁL, Václav
A15: 14 | B15: 10082405726 | C15: ok-DOUDĚROVÁ, Kateřina | D15: 10046656576 | E15: ok-KARÁSEK, David | G15: 10047767127 | H15: ok-KOLÁŘOVÁ, Justýna | I15: 10047309409 | J15: ok-KŘENEK, Adam | S15: 10047224937 | T15: ok-STRÁNSKÝ, Matěj
A16: 13 | B16: 10092938209 | C16: ok-CIBULKOVÁ, Tereza | D16: 10009358056 | E16: ok-RUBEŠ, Daniel | G16: 10047279804 | H16: ok-DOSTÁLOVÁ, Kateřina | I16: 10047299103 | J16: ok-KOLAŘÍK, Lukáš | S16: 10047394382 | T16: ok-OTTA, Josef
A17: 12 | B17: 10063273484 | C17: LICENCE NENALEZENA | D17: 10047410651 | E17: LICENCE NENALEZENA | I17: 10047288288 | J17: ok-KUČERA Jakub | S17: 10047292635 | T17: ok-VALL, Jan
A18: 11 | B18: 10094810208 | C18: LICENCE NENALEZENA | D18: 10047374982 | E18: ok-MIŇOVSKÝ, Prokop | I18: 10048203930 | J18: ok-MÜLLER, Maxim | S18: 10047443084 | T18: ok-VEVERKA, Václav
A19: 10 | D19: 10059526961 | E19: ok-POLÁK, Matyáš | I19: 10047455111 | J19: ok-RAČAN, David | S19: 10047248377 | T19: ok-ČERVÍČEK, David
A20: 9 | D20: 10012987573 | E20: ok-MUROŇ, Matyáš | I20: 10047449855 | J20: ok-HORULKO, Vladyslav | S20: 10047263434 | T20: ok-VONDRÁČEK, Jan
A21: 8 | D21: 10059729752 | E21: ok-HRDLIČKA, Adam | I21: 10047218873 | J21: ok-LIŠKA, Marek | S21: 10047400547 | T21: ok-KOBLÍŽEK, Matyáš
A22: 7 | D22: 10053209130 | E22: ok-NOVÁK, Filip | I22: 10047448744 | J22: ok-ČÍŽEK, Vojtěch | S22: 10047363464 | T22: ok-VOLF, Pavel
A23: 6 | D23: 10094955405 | E23: ok-BITTNER Jan | I23: 10077349905 | J23: ok-PRCHLÍK, Kryštof | S23: 10005541613 | T23: ok-VYSOČAN, Daniel
A24: 5 | D24: 10047452784 | E24: ok-PŘIDAL, Tobiáš | S24: 10047423179 | T24: ok-RUBÁŠ, Matouš
A25: 4 | D25: 10054142653 | E25: ok-HELLMICH, Jonáš | S25: 10055481556 | T25: ok-HAVRLANT, Jakub
A26: 3 | D26: 10096726764 | E26: LICENCE NENALEZENA | S26: 10047415196 | T26: ok-PŘIDAL, Tomáš
A27: 2 | D27: 10047349623 | E27: ok-KOBLÍŽEK, Vojtěch | S27: 10047763689 | T27: ok-DOLEŽAL, Tomáš
A28: 1 | D28: 10004772683 | E28: ok-PEŠEK, Adam | S28: 10058654264 | T28: ok-HYTYCH, Matěj
A29: 1 | D29: 10047334768 | E29: ok-KUBA, Jakub | S29: 10047281319 | T29: ok-STANĚK, Jakub
A30: 1 | D30: 10047318402 | E30: ok-SAMEC, Filip | S30: 10011516409 | T30: ok-TERŠL, Robin
A31: 1 | D31: 10053651286 | E31: ok-OPLUŠTIL, Ivo | S31: 10092869905 | T31: ok-KRUPKA, Štěpán
D32: 10046534318 | E32: ok-ŽENÍŠEK, Martin | S32: 10047289201 | T32: ok-ŠKUREK, Kryštof
D33: 10046576552 | E33: ok-ŠAFRÁNEK, Ondřej | S33: 10047329314 | T33: ok-PADĚLEK, Viktor
D34: 10047394483 | E34: ok-VACEK, Bertil | S34: 10047357808 | T34: ok-HÁK, Jakub
D35: 10091472192 | E35: LICENCE NENALEZENA | S35: 10092711166 | T35: ok-OSWALD, Jan
D36: 10047448441 | E36: ok-NOVÁČEK, Matyáš | S36: 10047440862 | T36: ok-JANÍČEK, Jakub
D37: 10047404284 | E37: ok-HEZINA, Jan | S37: 10046677087 | T37: ok-CÍRKVA, Vojtěch
D38: 10079785009 | E38: ok-HORYNA, Vlastimil | S38: 10047168454 | T38: ok-POKORNÝ, Ondřej
D39: 10081593754 | E39: LICENCE NENALEZENA | S39: 10047362050 | T39: ok-KOVAŘČÍK, Petr
D40: 10082332974 | E40: LICENCE NENALEZENA | S40: 10047443589 | T40: ok-ŠTEC, Radovan
D41: 10066160448 | E41: ok-Adam STREJČEK | S41: 10046607874 | T41: ok-SVOBODA, Pavel
D42: 10047452784 | E42: ok-PŘIDAL, Tobiáš | S42: 10047212712 | T42: ok-KAŇKOVSKÝ, Adam
D43: 10047047610 | E43: ok-HANZELKA, Lukáš | S43: 10082747953 | T43: ok-HOLEC Timon
D44: 10093188688 | E44: ok-WALDHAUSER, Vít | S44: 10092930024 | T44: ok-PETŘÍK, Jakub
D45: 10078831173 | E45: ok-SOUKUP, Vojtěch | S45: 10089720132 | T45: ok-CHOMA, Eduard
D46: 10046565842 | E46: ok-ZEDNÍK, Jiří | S46: 10047333758 | T46: LICENCE NENALEZENA
D47: 10058327494 | E47: LICENCE NENALEZENA | S47: 10046409430 | T47: ok-MAZEL, Ondřej
D48: 10085962794 | E48: LICENCE NENALEZENA | S48: 10047318705 | T48: ok-VIK, Matěj
D49: 10047430758 | E49: LICENCE NENALEZENA | S49: 10080408233 | T49: ok-ZÁBRODSKÝ, Filip
D50: 10082602352 | E50: ok-VLČEK, Miroslav | S50: 10003021936 | T50: ok-VRÁNA, David
D51: 10047420957 | E51: ok-PÍGL, Jan | S51: 10085014521 | T51: ok-DRÁPELA, Matěj

Sheet TEMP (hidden)
A1: =SUM(B1:B5) -> 0 | B1: 0 | C1: Kritasy | D1: TOP 5 | F1: KATEGORIE | G1: Typ zavodu | H1: Zavod Jmeno | J1: Silnic | K1: riterium
A2: =SUM(B1:B7) -> 0 | B2: 0 | C2: Silnice | D2: TOP 7 | F2: Ž | G2: SILNIC | H2: Soběslav krit | J2: 100 | K2: 50
A3: =SUM(B1:B14) -> 0 | C3: VIP | D3: ALL | F3: J | G3: KRITERIUM | H3: Kyjov Krit. | J3: 75 | K3: 37
F4: Jky | H4: Olomouc | J4: 60 | K4: 30
F5: K | H5: Plzeň krit. | J5: 55 | K5: 27
F6: Kky | H6: Ostrava krit | J6: 51 | K6: 24
F7: ŽSt | H7: Jablonec n. N. | J7: 48 | K7: 22
F8: Žky | H8: Terezín | J8: 45 | K8: 21
H9: Zbraslav Sil. | J9: 42 | K9: 20
H10: Kyjov Sil. | J10: 40 | K10: 19
H11: Olomouc | J11: 38 | K11: 19
H12: Kroměžíž | J12: 37 | K12: 27
H13: Plzeň | J13: 36 | K13: 16
H14: Bílovec | J14: 35 | K14: 15
H15: Nový Jičín | J15: 34 | K15: 14
H16: Ostrava | J16: 33 | K16: 13
H17: Jablonec n. N. | J17: 32 | K17: 12
H18: Židovice | J18: 31 | K18: 11
J19: 30 | K19: 10
J20: 29 | K20: 9
J21: 28 | K21: 8
J22: 27 | K22: 7
J23: 26 | K23: 6
J24: 25 | K24: 5
J25: 24 | K25: 4
J26: 23 | K26: 3
J27: 22 | K27: 2
J28: 21 | K28: 1
J29: 20 | K29: 1
J30: 19 | K30: 1
J31: 18 | K31: 1
J32: 17
J33: 16
J34: 15
J35: 14
J36: 13
J37: 12
J38: 11
J39: 10
J40: 9
J41: 8
J42: 7
J43: 6
J44: 5
J45: 4
J46: 3
J47: 2
J48: 1
J49: 1
J50: 1
J51: 1
